Workbook

Sheet Примерное меню СанПиН
A1: Согласовано: | J1: Утверждаю:
A2: Директор МБОУ «Билярская СОШ» | J2: СПОСПК "Эдем"
A3: Алексеевского муниципального района
A4: ________________ Чугуров А. А. | J4: _____________Турнина А. А.
A8: № рец. | B8: Приём пищи/ Наименование блюд | C8: Масса порций, в гр. | E8: Пищевые вещества (г) | K8: Энергетическая ценность (ккал) | M8: Витамины (мг) | U8: Минеральные вещества (мг)
E9: Белки | G9: Жиры | I9: Углеводы | M9: А | O9: В1 | Q9: В2 | S9: С | U9: Ca | W9: P | Y9: Mg | AA9: Fe
C10: 7-11 лет | D10: 12-18 лет | E10: 7-11 лет | F10: 12-18 лет | G10: 7-11 лет | H10: 12-18 лет | I10: 7-11 лет | J10: 12-18 лет | K10: 7-11 лет | L10: 12-18 лет | M10: 7-11 лет | N10: 12-18 лет | O10: 7-11 лет | P10: 12-18 лет | Q10: 7-11 лет | R10: 12-18 лет | S10: 7-11 лет | T10: 12-18 лет | U10: 7-11 лет | V10: 12-18 лет | W10: 7-11 лет | X10: 12-18 лет | Y10: 7-11 лет | Z10: 12-18 лет | AA10: 7-11 лет | AB10: 12-18 лет
B11: День 1 / Понедельник
B12: Завтрак
A13: №71 | B13: Огурцы свежие | C13: 60 | D13: 100 | E13: 0.5 | F13: 0.83 | G13: 0.6 | H13: 1 | I13: 1.56 | J13: 2.6 | K13: 8.4 | L13: 14 | M13: 0 | N13: 0 | O13: 0.01 | P13: 0.016 | Q13: 0.024 | R13: 0.04 | S13: 6 | T13: 10 | U13: 13.8 | V13: 23 | W13: 25.2 | X13: 42 | Y13: 8.4 | Z13: 14 | AA13: 0.36 | AB13: 0.6
A14: №302 | B14: Гречка отварная рассыпчатая | C14: 150 | D14: 180 | E14: 6.86 | F14: 8.23 | G14: 7.58 | H14: 9.09 | I14: 40.4 | J14: 48.48 | K14: 230 | L14: 276 | M14: 0.03 | N14: 0.04 | O14: 0.23 | P14: 0.28 | Q14: 0.1 | R14: 0.13 | S14: 0 | T14: 0 | U14: 12.72 | V14: 15.4 | W14: 163 | X14: 196 | Y14: 88 | Z14: 118 | AA14: 1.63 | AB14: 2.37
A15: №243 | B15: Сосиска отварная | C15: 100 | D15: 100 | E15: 10.6 | F15: 10.6 | G15: 13 | H15: 13 | I15: 8.5 | J15: 8.5 | K15: 191 | L15: 191 | M15: 0 | N15: 0 | O15: 0 | P15: 0 | Q15: 0 | R15: 0 | S15: 0 | T15: 0 | U15: 236.4 | V15: 236.4 | W15: 165.36 | X15: 165.36 | Y15: 20.8 | Z15: 20.8 | AA15: 1.87 | AB15: 1.87
A16: №333 | B16: Соус томатный с овощами | C16: 30 | D16: 30 | E16: 0.3 | F16: 0.3 | G16: 1.4 | H16: 1.4 | I16: 1.8 | J16: 1.8 | K16: 21 | L16: 21 | M16: 0.12 | N16: 0.1 | O16: 0.07 | P16: 0.07 | Q16: 0.08 | R16: 0.08 | S16: 0.48 | T16: 0.48 | U16: 3.27 | V16: 3.27 | W16: 5.32 | X16: 5.32 | Y16: 2.19 | Z16: 2.19 | AA16: 0.07 | AB16: 0.07
A17: №376 | B17: Чай с сахаром | C17: 200/15 | D17: 200/15 | E17: 0.2 | F17: 0.2 | G17: 0.05 | H17: 0.05 | I17: 15.01 | J17: 15.01 | K17: 61.29 | L17: 61.29 | M17: 0.05 | N17: 0.05 | O17: 0 | P17: 0 | Q17: 0.01 | R17: 0.01 | S17: 0.1 | T17: 0.1 | U17: 5.25 | V17: 5.25 | W17: 8.24 | X17: 8.24 | Y17: 4.4 | Z17: 4.4 | AA17: 0.86 | AB17: 0.86
B18: Хлеб пшеничный /ржано-пшеничный | C18: 30 | D18: 50 | E18: 3.37 | F18: 5.62 | G18: 1.78 | H18: 2.97 | I18: 12.6 | J18: 21 | K18: 90 | L18: 150 | M18: 0 | N18: 0 | O18: 0.05 | P18: 0.07 | Q18: 0.015 | R18: 0.02 | S18: 0 | T18: 0 | U18: 6.9 | V18: 11.5 | W18: 0 | X18: 0 | Y18: 0 | Z18: 0 | AA18: 0.6 | AB18: 0.08
B19: Итого за завтрак: | E19: =E13+E14+E15+E16+E17+E18 -> 21.83 | F19: =F13+F14+F15+F16+F17+F18 -> 25.78 | G19: 24.41 | H19: 27.51 | I19: 79.87 | J19: 97.39 | K19: 601.69 | L19: 713.29 | M19: 0.2 | N19: 0.19 | O19: 0.36 | P19: 0.436 | Q19: 0.229 | R19: 0.28 | S19: 6.58 | T19: 10.58 | U19: 278.34 | V19: 294.82 | W19: 367.12 | X19: 416.92 | Y19: 123.79 | Z19: 159.39 | AA19: 5.39 | AB19: 5.85
B20: Обед
A21: №59 | B21: Салат из моркови с яблоком (до 1 марта) Салат "Зимний" (после 1 марта) | C21: 60 | D21: 100 | E21: 0.59 | F21: 0.98 | G21: 6.08 | H21: 10.13 | I21: 5.19 | J21: 8.65 | K21: 77.92 | L21: 129.86 | M21: 0 | N21: 0 | O21: 0.048 | P21: 0.06 | Q21: 0.024 | R21: 0.04 | S21: 15 | T21: 25 | U21: 8.4 | V21: 14 | W21: 15.6 | X21: 26 | Y21: 12 | Z21: 20 | AA21: 0.58 | AB21: 0.9
A22: №112 | B22: Суп с макаронными изделиями на мкб со сметаной | C22: 250/15/10 | D22: 250/15/10 | E22: 8.36 | F22: 8.36 | G22: 6.33 | H22: 6.33 | I22: 27.44 | J22: 27.44 | K22: 200 | L22: 200 | M22: 0.01 | N22: 0.01 | O22: 0.13 | P22: 0.13 | Q22: 0.09 | R22: 0.09 | S22: 12.77 | T22: 12.77 | U22: 20.65 | V22: 20.65 | W22: 60.4 | X22: 60.4 | Y22: 25.67 | Z22: 25.67 | AA22: 1.35 | AB22: 1.35
A23: №312,№321 | B23: Сложный гарнир | C23: 150 | D23: 180 | E23: 5.01 | F23: 6.01 | G23: 7.8 | H23: 9.36 | I23: 23.43 | J23: 28.11 | K23: 170.6 | L23: 194.7 | M23: 0.45 | N23: 0.54 | O23: 0.1 | P23: 0.12 | Q23: 0.12 | R23: 0.14 | S23: 13.4 | T23: 18.08 | U23: 250 | V23: 280 | W23: 205 | X23: 229.6 | Y23: 62 | Z23: 74.4 | AA23: 2.32 | AB23: 2.78
A24: №268 | B24: Котлета из говядины | C24: 100 | D24: 100 | E24: 12.7 | F24: 12.7 | G24: 9.92 | H24: 9.92 | I24: 13.52 | J24: 13.52 | K24: 236 | L24: 236 | M24: 0.012 | N24: 0.012 | O24: 0.1 | P24: 0.1 | Q24: 0.13 | R24: 0.13 | S24: 1.62 | T24: 1.62 | U24: 19.87 | V24: 19.87 | W24: 201 | X24: 201 | Y24: 18.85 | Z24: 18.85 | AA24: 0.62 | AB24: 0.62
A25: №359 | B25: Кисель | C25: 200 | D25: 200 | E25: 0 | F25: 0 | G25: 0 | H25: 0 | I25: 35.94 | J25: 35.94 | K25: 118 | L25: 118 | M25: 0 | N25: 0 | O25: 0 | P25: 0 | Q25: 0 | R25: 0 | S25: 0 | T25: 0 | U25: 0.3 | V25: 0.3 | W25: 0 | X25: 0 | Y25: 0 | Z25: 0 | AA25: 0.45 | AB25: 0.45
B26: Хлеб пшеничный /ржано-пшеничный | C26: 30 | D26: 50 | E26: 3.37 | F26: 5.62 | G26: 1.78 | H26: 2.97 | I26: 12.6 | J26: 21 | K26: 90 | L26: 150 | M26: 0 | N26: 0 | O26: 0.05 | P26: 0.07 | Q26: 0.015 | R26: 0.02 | S26: 0 | T26: 0 | U26: 6.9 | V26: 11.5 | W26: 0 | X26: 0 | Y26: 0 | Z26: 0 | AA26: 0.6 | AB26: 0.08
B27: Итого за обед: | E27: =E22+E24+E25+E26 -> 24.43 | F27: =F22+F24+F25+F26 -> 26.68 | G27: 18.03 | H27: 19.22 | I27: =I22+I24+I25+I26+I21 -> 94.69 | J27: 106.55 | K27: =K22+K23+K24+K25+K26+K21 -> 892.52 | L27: 1028.56 | M27: 0.472 | N27: 0.562 | O27: 0.428 | P27: 0.48 | Q27: 0.379 | R27: 0.42 | S27: 42.79 | T27: 57.47 | U27: 306.12 | V27: 346.32 | W27: 482 | X27: 517 | Y27: 118.52 | Z27: 138.92 | AA27: 5.92 | AB27: 6.18
B28: Итого за 1 день: | E28: =E27+E19 -> 46.26 | F28: 56.53 | G28: =G27+G19 -> 42.44 | H28: 46.73 | I28: 174.56 | J28: 203.94 | K28: 1494.21 | L28: 1741.85 | M28: 0.672 | N28: 0.752 | O28: 0.788 | P28: 0.916 | Q28: 0.608 | R28: 0.7 | S28: 49.37 | T28: 68.05 | U28: 584.46 | V28: 641.14 | W28: 849.12 | X28: 933.92 | Y28: 242.31 | Z28: 298.31 | AA28: 11.31 | AB28: 12.03
B30: День 2 / Вторник
B31: Завтрак
A32: №333 | B32: Булочка домашняя | C32: 45 | D32: 45 | E32: 5.9 | F32: 5.9 | G32: 7.2 | H32: 7.2 | I32: 33.13 | J32: 33.13 | K32: 205 | L32: 205 | M32: 0.01 | N32: 0.01 | O32: 0.07 | P32: 0.07 | Q32: 0.04 | R32: 0.04 | S32: 0.16 | T32: 0.16 | U32: 23.28 | V32: 23.28 | W32: 50.76 | X32: 50.76 | Y32: 8.64 | Z32: 8.64 | AA32: 0.59 | AB32: 0.59
A33: №304 | B33: Рис отварной | C33: 150 | D33: 180 | E33: 3.7 | F33: 4.44 | G33: 6.37 | H33: 7.56 | I33: 37.23 | J33: 44.67 | K33: 220 | L33: 264 | M33: 0.03 | N33: 0.04 | O33: 0.04 | P33: 0.05 | Q33: 0.02 | R33: 0.03 | S33: 0 | T33: 0 | U33: 7.44 | V33: 9.3 | W33: 80.4 | X33: 100 | Y33: 26 | Z33: 32.5 | AA33: 0.53 | AB33: 0.67
A34: №229 | B34: Рыба припущенная с овощами | C34: 100/50 | D34: 100/50 | E34: 11.4 | F34: 11.4 | G34: 7.04 | H34: 7.04 | I34: 12.76 | J34: 12.76 | K34: 204 | L34: 204 | M34: 0.04 | N34: 0.04 | O34: 0.11 | P34: 0.11 | Q34: 0.12 | R34: 0.12 | S34: 2.55 | T34: 2.55 | U34: 152.95 | V34: 152.95 | W34: 239.39 | X34: 239.39 | Y34: 56.27 | Z34: 56.27 | AA34: 0.89 | AB34: 0.89
A35: №348 | B35: Компот из сухофруктов | C35: 200 | D35: 200 | E35: 0.54 | F35: 0.54 | G35: 0 | H35: 0 | I35: 17.58 | J35: 17.58 | K35: 70.53 | L35: 70.53 | M35: 0.18 | N35: 0.18 | O35: 0.005 | P35: 0.005 | Q35: 0.02 | R35: 0.02 | S35: 0.03 | T35: 0.03 | U35: 2.56 | V35: 2.56 | W35: 3.56 | X35: 3.56 | Y35: 1.74 | Z35: 1.74 | AA35: 0.1 | AB35: 0.1
B36: Хлеб пшеничный /ржано-пшеничный | C36: 30 | D36: 50 | E36: 3.37 | F36: 5.62 | G36: 1.78 | H36: 2.97 | I36: 12.6 | J36: 21 | K36: 90 | L36: 150 | M36: 0 | N36: 0 | O36: 0.05 | P36: 0.07 | Q36: 0.015 | R36: 0.02 | S36: 0 | T36: 0 | U36: 6.9 | V36: 11.5 | W36: 0 | X36: 0 | Y36: 0 | Z36: 0 | AA36: 0.6 | AB36: 0.08
B37: Итого за завтрак: | E37: =E32+E33+E34+E35+E36 -> 24.91 | F37: =F32+F33+F34+F35+F36 -> 27.9 | G37: 22.39 | H37: 24.77 | I37: 113.3 | J37: =J32+J33+J35+J36 -> 116.38 | K37: 789.53 | L37: 893.53 | M37: 0.26 | N37: 0.27 | O37: 0.275 | P37: 0.305 | Q37: 0.215 | R37: 0.23 | S37: 2.74 | T37: 2.74 | U37: 193.13 | V37: 199.59 | W37: 374.11 | X37: 393.71 | Y37: 92.65 | Z37: 99.15 | AA37: 2.71 | AB37: 2.33
B38: Обед
A39: №52 | B39: Свекла отварная | C39: 60 | D39: 100 | E39: 0.87 | F39: 1.45 | G39: 4.05 | H39: 6.75 | I39: 9.22 | J39: 15.36 | K39: 53.82 | L39: 89.7 | M39: 0 | N39: 0 | O39: 0.01 | P39: 0.02 | Q39: 0.015 | R39: 0.03 | S39: 5.09 | T39: 10.18 | U39: 14.63 | V39: 24.38 | W39: 16.05 | X39: 26.75 | Y39: 9.95 | Z39: 16.58 | AA39: 0 | AB39: 0
A40: №88 | B40: Щи из свежей капусты с картофелем на мкб со сметаной | C40: 250/15/10 | D40: 250/15/10 | E40: 7.5 | F40: 7.5 | G40: 8.5 | H40: 8.5 | I40: 18.2 | J40: 18.2 | K40: 155.7 | L40: 155.7 | M40: 0.15 | N40: 0.15 | O40: 0.45 | P40: 0.45 | Q40: 0.6 | R40: 0.6 | S40: 10.25 | T40: 10.25 | U40: 105.25 | V40: 105.25 | W40: 78.74 | X40: 78.74 | Y40: 24.45 | Z40: 24.45 | AA40: 1.15 | AB40: 1.15
A41: №203 | B41: Макароны отварные со сливочным маслом | C41: 150 | D41: 180 | E41: 5.47 | F41: 6.84 | G41: 6.37 | H41: 8.95 | I41: 36.34 | J41: 45.43 | K41: 224 | L41: 268.8 | M41: 0.03 | N41: 0.04 | O41: 0.09 | P41: 0.011 | Q41: 0.02 | R41: 0.03 | S41: 0 | T41: 0 | U41: 11.81 | V41: 14.7 | W41: 47.64 | X41: 59.5 | Y41: 8.36 | Z41: 10.45 | AA41: 0.85 | AB41: 1.06
A42: №279 | B42: Тефтели мясные | C42: 100 | D42: 100 | E42: 9.99 | F42: 9.99 | G42: 9.1 | H42: 9.1 | I42: 24.4 | J42: 24.4 | K42: 204 | L42: 204 | M42: 0 | N42: 0 | O42: 0.06 | P42: 0.06 | Q42: 0.13 | R42: 0.13 | S42: 1.37 | T42: 1.37 | U42: 131.12 | V42: 131.12 | W42: 153.75 | X42: 153.75 | Y42: 27.5 | Z42: 27.5 | AA42: 1.87 | AB42: 1.87
A43: №333 | B43: Соус томатный с овощами | C43: 30 | D43: 30 | E43: 0.3 | F43: 0.3 | G43: 1.4 | H43: 1.4 | I43: 1.8 | J43: 1.8 | K43: 21 | L43: 21 | M43: 0.12 | N43: 0.1 | O43: 0.07 | P43: 0.07 | Q43: 0.08 | R43: 0.08 | S43: 0.48 | T43: 0.48 | U43: 3.27 | V43: 3.27 | W43: 5.32 | X43: 5.32 | Y43: 2.19 | Z43: 2.19 | AA43: 0.07 | AB43: 0.07
B44: Хлеб пшеничный /ржано-пшеничный | C44: 30 | D44: 50 | E44: 3.37 | F44: 5.62 | G44: 1.78 | H44: 2.97 | I44: 12.6 | J44: 21 | K44: 90 | L44: 150 | M44: 0 | N44: 0 | O44: 0.05 | P44: 0.07 | Q44: 0.015 | R44: 0.02 | S44: 0 | T44: 0 | U44: 6.9 | V44: 11.5 | W44: 0 | X44: 0 | Y44: 0 | Z44: 0 | AA44: 0.6 | AB44: 0.08
A45: №376 | B45: Чай с сахаром | C45: 200/15 | D45: 200/15 | E45: 0.2 | F45: 0.2 | G45: 0.05 | H45: 0.05 | I45: 15.01 | J45: 15.01 | K45: 61.29 | L45: 61.29 | M45: 0.05 | N45: 0.05 | O45: 0 | P45: 0 | Q45: 0.01 | R45: 0.01 | S45: 0.1 | T45: 0.1 | U45: 5.25 | V45: 5.25 | W45: 8.24 | X45: 8.24 | Y45: 4.4 | Z45: 4.4 | AA45: 0.86 | AB45: 0.86
B46: Итого за обед: | E46: =E40+E41+E42+E43+E44+E45+E39 -> 27.7 | F46: =F40+F41+F42+F43+F44+F45+F39 -> 31.9 | G46: 31.25 | H46: =H40+H41+H42+H43+H45+H39 -> 34.75 | I46: 117.57 | J46: 141.2 | K46: 809.81 | L46: 950.49 | M46: 0.35 | N46: 0.34 | O46: 0.73 | P46: 0.681 | Q46: 0.87 | R46: 0.9 | S46: 17.29 | T46: 22.38 | U46: 278.23 | V46: 295.47 | W46: 309.74 | X46: 332.3 | Y46: 76.85 | Z46: 85.57 | AA46: 5.4 | AB46: 5.09
B47: Итого за 1 день: | E47: =E46+E37 -> 52.61 | F47: =F46+F37 -> 59.8 | G47: 53.64 | H47: 59.52 | I47: 230.87 | J47: 257.58 | K47: 1599.34 | L47: 1844.02 | M47: 0.61 | N47: 0.61 | O47: 1.005 | P47: 0.986 | Q47: 1.085 | R47: 1.13 | S47: 20.03 | T47: 25.12 | U47: 471.36 | V47: 495.06 | W47: 683.85 | X47: 726.01 | Y47: 169.5 | Z47: 184.72 | AA47: 8.11 | AB47: 7.42
B48: День 3 / Среда
B49: Завтрак
A50: №15 | B50: Сыр | C50: 15 | D50: 15 | E50: 3.9 | F50: 3.9 | G50: 3.97 | H50: 3.97 | I50: 0.52 | J50: 0.52 | K50: 54.75 | L50: 54.75 | M50: 0.6 | N50: 0.6 | O50: 0 | P50: 0 | Q50: 0 | R50: 0 | S50: 0.04 | T50: 0.04 | U50: 305 | V50: 305 | W50: 81 | X50: 81 | Y50: 0.75 | Z50: 0.75 | AA50: 0.14 | AB50: 0.14
A51: №173 | B51: Каша молочная геркулесовая со сливочным маслом | C51: 200/5/10 | D51: 200/5/10 | E51: 5.8 | F51: 5.8 | G51: 5.7 | H51: 5.7 | I51: 18.26 | J51: 18.26 | K51: 206 | L51: 206 | M51: 0.05 | N51: 0.05 | O51: 0.23 | P51: 0.23 | Q51: 0.24 | R51: 0.24 | S51: 1.3 | T51: 1.3 | U51: 131.5 | V51: 131.5 | W51: 327.1 | X51: 327.1 | Y51: 54.5 | Z51: 54.5 | AA51: 2.11 | AB51: 2.11
A52: №408 | B52: Перемяч с мясом | C52: 60 | D52: 60 | E52: 5.73 | F52: 5.73 | G52: 8.17 | H52: 8.17 | I52: 21.84 | J52: 21.84 | K52: 192 | L52: 192 | M52: 0.003 | N52: 0.003 | O52: 0.07 | P52: 0.07 | Q52: 0.057 | R52: 0.057 | S52: 0.678 | T52: 0.678 | U52: 0 | V52: 0 | W52: 76.62 | X52: 76.62 | Y52: 11.58 | Z52: 11.58 | AA52: 1.01 | AB52: 1.01
B53: Хлеб пшеничный /ржано-пшеничный | C53: 30 | D53: 50 | E53: 3.37 | F53: 5.62 | G53: 1.78 | H53: 2.97 | I53: 12.6 | J53: 21 | K53: 90 | L53: 150 | M53: 0 | N53: 0 | O53: 0.05 | P53: 0.07 | Q53: 0.015 | R53: 0.02 | S53: 0 | T53: 0 | U53: 6.9 | V53: 11.5 | W53: 0 | X53: 0 | Y53: 0 | Z53: 0 | AA53: 0.6 | AB53: 0.08
A54: №376 | B54: Чай с сахаром | C54: 200/15 | D54: 200/15 | E54: 0.2 | F54: 0.2 | G54: 0.05 | H54: 0.05 | I54: 15.01 | J54: 15.01 | K54: 61.29 | L54: 61.29 | M54: 0.05 | N54: 0.05 | O54: 0 | P54: 0 | Q54: 0.01 | R54: 0.01 | S54: 0.1 | T54: 0.1 | U54: 5.25 | V54: 5.25 | W54: 8.24 | X54: 8.24 | Y54: 4.4 | Z54: 4.4 | AA54: 0.86 | AB54: 0.86
B55: Итого за завтрак: | E55: =E50+E51+E52+E53+E54 -> 19 | F55: =F50+F51+F52+F53+F54 -> 21.25 | G55: 19.67 | H55: 20.86 | I55: 68.23 | J55: 76.63 | K55: 604.04 | L55: 664.04 | M55: 0.703 | N55: 0.703 | O55: 0.35 | P55: 0.37 | Q55: 0.322 | R55: 0.327 | S55: 2.118 | T55: 2.118 | U55: 448.65 | V55: 453.25 | W55: 492.96 | X55: 492.96 | Y55: 71.23 | Z55: 71.23 | AA55: 4.72 | AB55: 4.2
B56: Обед
A57: №59 | B57: Салат из моркови с изюмом(до 1 марта) /Салат из припущенной моркови с яблоком(после 1 марта) | C57: 60 | D57: 100 | E57: 0.73 | F57: 1.1 | G57: 6.04 | H57: 10.66 | I57: 8.4 | J57: 14 | K57: 90.96 | L57: 151.6 | M57: 0 | N57: 0 | O57: 0.048 | P57: 0.06 | Q57: 0.024 | R57: 0.04 | S57: 15 | T57: 25 | U57: 8.4 | V57: 14 | W57: 15.6 | X57: 26 | Y57: 12 | Z57: 20 | AA57: 0.58 | AB57: 0.9
A58: №96 | B58: Рассольник Ленинградский на мкб со сметаной | C58: 250/15/10 | D58: 250/15/10 | E58: 7.02 | F58: 7.02 | G58: 8.2 | H58: 8.2 | I58: 17.32 | J58: 17.32 | K58: 171.3 | L58: 171.3 | M58: 0.18 | N58: 0.18 | O58: 0.12 | P58: 0.12 | Q58: 0.1 | R58: 0.1 | S58: 10.68 | T58: 10.68 | U58: 28.84 | V58: 28.84 | W58: 105.4 | X58: 105.4 | Y58: 29.7 | Z58: 29.7 | AA58: 1.38 | AB58: 1.38
A59: №259 | B59: Жаркое из говядины | C59: 200 | D59: 220 | E59: 16.38 | F59: 18.01 | G59: 12.53 | H59: 13.78 | I59: 47.92 | J59: 52.71 | K59: 381 | L59: 419.1 | M59: 0.15 | N59: 0.165 | O59: 0.18 | P59: 0.2 | Q59: 0.2 | R59: 0.22 | S59: 21.67 | T59: 23.84 | U59: 31.33 | V59: 34.46 | W59: 225 | X59: 247.5 | Y59: 49.59 | Z59: 54.54 | AA59: 1.92 | AB59: 2.11
B60: Хлеб пшеничный /ржано-пшеничный | C60: 30 | D60: 50 | E60: 3.37 | F60: 5.62 | G60: 1.78 | H60: 2.97 | I60: 12.6 | J60: 21 | K60: 90 | L60: 150 | M60: 0 | N60: 0 | O60: 0.05 | P60: 0.07 | Q60: 0.015 | R60: 0.02 | S60: 0 | T60: 0 | U60: 6.9 | V60: 11.5 | W60: 0 | X60: 0 | Y60: 0 | Z60: 0 | AA60: 0.6 | AB60: 0.08
A61: №359 | B61: Кисель | C61: 200 | D61: 200 | E61: 0 | F61: 0 | G61: 0 | H61: 0 | I61: 35.94 | J61: 35.94 | K61: 118 | L61: 118 | M61: 0 | N61: 0 | O61: 0 | P61: 0 | Q61: 0 | R61: 0 | S61: 0 | T61: 0 | U61: 0.3 | V61: 0.3 | W61: 0 | X61: 0 | Y61: 0 | Z61: 0 | AA61: 0.45 | AB61: 0.45
B62: Итого за обед: | E62: =E57+E58+E59+E60+E61 -> 27.5 | F62: =F57+F58+F59+F60+F61 -> 31.75 | G62: 28.55 | H62: 35.61 | I62: 122.18 | J62: 140.97 | K62: 851.26 | L62: 1010 | M62: 0.33 | N62: 0.345 | O62: 0.398 | P62: 0.45 | Q62: 0.339 | R62: 0.38 | S62: 47.35 | T62: 59.52 | U62: 75.77 | V62: 89.1 | W62: 346 | X62: 378.9 | Y62: 91.29 | Z62: 104.24 | AA62: 4.93 | AB62: 4.92
B63: Итого за 1 день: | E63: =E55+E62 -> 46.5 | F63: =F55+F62 -> 53 | G63: 48.22 | H63: 56.47 | I63: 190.41 | J63: 217.6 | K63: 1455.3 | L63: 1674.04 | M63: 1.033 | N63: 1.048 | O63: 0.748 | P63: 0.82 | Q63: 0.661 | R63: 0.707 | S63: 49.468 | T63: 61.638 | U63: 524.42 | V63: 542.35 | W63: 838.96 | X63: 871.86 | Y63: 162.52 | Z63: 175.47 | AA63: 9.65 | AB63: 9.12
B65: День 4 / Черверг
B66: Завтрак
A67: №45 | B67: Салат из белокачанной капусты (до 1 марта)/ Винегрет овощной (после 1 марта) | C67: 60 | D67: 100 | E67: 0.96 | F67: 0.57 | G67: 3.05 | H67: 5.08 | I67: 10.82 | J67: 18.03 | K67: 33.3 | L67: 55.5 | M67: 0.31 | N67: 0.52 | O67: 0.04 | P67: 0.06 | Q67: 0.05 | R67: 0.08 | S67: 6.3 | T67: 10.5 | U67: 13.38 | V67: 22.3 | W67: 35.1 | X67: 58.8 | Y67: 11.04 | Z67: 18.4 | AA67: 0.53 | AB67: 0.88
A68: №312 | B68: Картофельное пюре | C68: 150 | D68: 180 | E68: 3.43 | F68: 4.11 | G68: 7.1 | H68: 8.52 | I68: 25.3 | J68: 30.36 | K68: 170 | L68: 204 | M68: 0.03 | N68: 0.04 | O68: 0.17 | P68: 0.2 | Q68: 0.13 | R68: 0.15 | S68: 27.31 | T68: 32.77 | U68: 80.2 | V68: 96.28 | W68: 102.3 | X68: 123 | Y68: 34.45 | Z68: 41.37 | AA68: 1.24 | AB68: 1.5
A69: №301 | B69: Кнели куриные | C69: 100 | D69: 100 | E69: 15.14 | F69: 15.14 | G69: 10.6 | H69: 10.6 | I69: 6.95 | J69: 6.95 | K69: 228 | L69: 228 | M69: 0.04 | N69: 0.04 | O69: 0.1 | P69: 0.1 | Q69: 0.14 | R69: 0.14 | S69: 5.87 | T69: 5.87 | U69: 18.4 | V69: 18.4 | W69: 50 | X69: 50 | Y69: 28.38 | Z69: 28.38 | AA69: 1.48 | AB69: 1.48
A70: №333 | B70: Соус томатный с овощами | C70: 30 | D70: 30 | E70: 0.3 | F70: 0.3 | G70: 1.4 | H70: 1.4 | I70: 1.8 | J70: 1.8 | K70: 21 | L70: 21 | M70: 0.12 | N70: 0.1 | O70: 0.07 | P70: 0.07 | Q70: 0.08 | R70: 0.08 | S70: 0.48 | T70: 0.48 | U70: 3.27 | V70: 3.27 | W70: 5.32 | X70: 5.32 | Y70: 2.19 | Z70: 2.19 | AA70: 0.07 | AB70: 0.07
A71: №348 | B71: Компот из сухофруктов | C71: 200 | D71: 200 | E71: 0.54 | F71: 0.54 | G71: 0 | H71: 0 | I71: 17.58 | J71: 17.58 | K71: 70.53 | L71: 70.53 | M71: 0.18 | N71: 0.18 | O71: 0.005 | P71: 0.005 | Q71: 0.02 | R71: 0.02 | S71: 0.03 | T71: 0.03 | U71: 2.56 | V71: 2.56 | W71: 3.56 | X71: 3.56 | Y71: 1.74 | Z71: 1.74 | AA71: 0.1 | AB71: 0.1
B72: Хлеб пшеничный /ржано-пшеничный | C72: 30 | D72: 50 | E72: 3.37 | F72: 5.62 | G72: 1.78 | H72: 2.97 | I72: 12.6 | J72: 21 | K72: 90 | L72: 150 | M72: 0 | N72: 0 | O72: 0.05 | P72: 0.07 | Q72: 0.015 | R72: 0.02 | S72: 0 | T72: 0 | U72: 6.9 | V72: 11.5 | W72: 0 | X72: 0 | Y72: 0 | Z72: 0 | AA72: 0.6 | AB72: 0.08
B73: Итого за завтрак: | E73: =E67+E69+E70+E71+E72 -> 20.31 | F73: =F67+F69+F70+F71+F72 -> 22.17 | G73: 16.83 | H73: 20.05 | I73: =I67+I68+I69+I70+I71+I72+I58 -> 92.37 | J73: =J67+J68+J69+J70+J71+J72+J58 -> 113.04 | K73: =K67+K68+K69+K70+K71+K72 -> 612.83 | L73: 729.03 | M73: 0.68 | N73: 0.88 | O73: 0.435 | P73: 0.505 | Q73: 0.435 | R73: 0.49 | S73: 39.99 | T73: 49.65 | U73: 124.71 | V73: 154.31 | W73: 196.28 | X73: 240.68 | Y73: 77.8 | Z73: 92.08 | AA73: 4.02 | AB73: 4.11
B74: Обед
A75: №37 | B75: Салат "Зимний" | C75: 60 | D75: 100 | E75: 0.7 | F75: 1.17 | G75: 3.06 | H75: 5.1 | I75: 6.65 | J75: 11.09 | K75: 63.6 | L75: 106 | M75: 0 | N75: 0 | O75: 0.017 | P75: 0.03 | Q75: 0.017 | R75: 0.03 | S75: 14.85 | T75: 24.75 | U75: 20.94 | V75: 34.9 | W75: 17.61 | X75: 27.85 | Y75: 10.98 | Z75: 18.3 | AA75: 0.58 | AB75: 0.98
A76: №82 | B76: Борщ с капустой и картофелем на мкб со сметаной | C76: 250/15/10 | D76: 250/15/10 | E76: 7.5 | F76: 7.5 | G76: 7.99 | H76: 7.99 | I76: 23.09 | J76: 23.09 | K76: 150 | L76: 150 | M76: 0.27 | N76: 0.27 | O76: 0.06 | P76: 0.06 | Q76: 0.28 | R76: 0.28 | S76: 9.9 | T76: 9.9 | U76: 44.87 | V76: 44.87 | W76: 81.62 | X76: 81.62 | Y76: 26.53 | Z76: 26.53 | AA76: 1.47 | AB76: 1.47
A77: №265 | B77: Плов с говядиной | C77: 200 | D77: 220 | E77: 11.33 | F77: 12.46 | G77: 16.8 | H77: 18.48 | I77: 34.35 | J77: 37.78 | K77: 354 | L77: 389.4 | M77: 0 | N77: 0 | O77: 0.34 | P77: 0.37 | Q77: 0.24 | R77: 0.26 | S77: 1.1 | T77: 1.21 | U77: 26.6 | V77: 29.2 | W77: 336 | X77: 369 | Y77: 159 | Z77: 175 | AA77: 0.65 | AB77: 0.71
A78: №382 | B78: Какао с молоком | C78: 200 | D78: 200 | E78: 4.68 | F78: 4.68 | G78: 5.12 | H78: 5.12 | I78: 22.5 | J78: 22.5 | K78: 175 | L78: 175 | M78: 0.015 | N78: 0.015 | O78: 0.06 | P78: 0.06 | Q78: 0.2 | R78: 0.2 | S78: 1.95 | T78: 1.95 | U78: 181.4 | V78: 181.4 | W78: 148 | X78: 148 | Y78: 24.82 | Z78: 24.82 | AA78: 0.43 | AB78: 0.43
B79: Хлеб пшеничный /ржано-пшеничный | C79: 30 | D79: 50 | E79: 3.37 | F79: 5.62 | G79: 1.78 | H79: 2.97 | I79: 12.6 | J79: 21 | K79: 90 | L79: 150 | M79: 0 | N79: 0 | O79: 0.05 | P79: 0.07 | Q79: 0.015 | R79: 0.02 | S79: 0 | T79: 0 | U79: 6.9 | V79: 11.5 | W79: 0 | X79: 0 | Y79: 0 | Z79: 0 | AA79: 0.6 | AB79: 0.08
B80: Итого за обед: | E80: =E77+E76+E78+E79+E75 -> 27.58 | F80: =F77+F76+F78+F79+F75 -> 31.43 | G80: 34.75 | H80: 39.66 | I80: =I77+I76+I78+I79+I75+I71 -> 116.77 | J80: =J77+J76+J78+J79+J75+J71 -> 133.04 | K80: 832.6 | L80: 970.4 | M80: 0.285 | N80: 0.285 | O80: 0.527 | P80: 0.59 | Q80: 0.752 | R80: 0.79 | S80: 27.8 | T80: 37.81 | U80: 280.71 | V80: 301.87 | W80: =W77+W78+W79+W75 -> 501.61 | X80: =X77+X78+X79+X75 -> 544.85 | Y80: 221.33 | Z80: 244.65 | AA80: 3.73 | AB80: 3.67
B81: Итого за 1 день: | E81: =E73+E80 -> 47.89 | F81: =F73+F80 -> 53.6 | G81: 51.58 | H81: 59.71 | I81: 209.14 | J81: 246.08 | K81: 1445.43 | L81: 1699.43 | M81: 0.965 | N81: 1.165 | O81: 0.962 | P81: 1.095 | Q81: 1.187 | R81: 1.28 | S81: 67.79 | T81: 87.46 | U81: 405.42 | V81: 456.18 | W81: 697.89 | X81: 785.53 | Y81: 299.13 | Z81: 336.73 | AA81: 7.75 | AB81: 7.78
B83: День 5 / Пятница
B84: Завтрак
A85: №53 | B85: Салат из отварной свеклы с зеленым горошком | C85: 60 | D85: 100 | E85: 0.82 | F85: 1.36 | G85: 3.05 | H85: 5.08 | I85: 8.81 | J85: 14.68 | K85: 55.68 | L85: 92.8 | M85: 0 | N85: 0 | O85: 0.015 | P85: 0.025 | Q85: 0.025 | R85: 0.033 | S85: 5.5 | T85: 8 | U85: 16.75 | V85: 27.92 | W85: 21.78 | X85: 36.3 | Y85: 10.5 | Z85: 17.5 | AA85: 0.63 | AB85: 1.05
A86: №203 | B86: Макароны отварные со сливочным маслом | C86: 150 | D86: 180 | E86: 5.47 | F86: 6.84 | G86: 6.37 | H86: 8.95 | I86: 36.34 | J86: 45.43 | K86: 224 | L86: 268.8 | M86: 0.03 | N86: 0.04 | O86: 0.09 | P86: 0.011 | Q86: 0.02 | R86: 0.03 | S86: 0 | T86: 0 | U86: 118.1 | V86: 147.2 | W86: 247.64 | X86: 308.65 | Y86: 8.36 | Z86: 10.45 | AA86: 0.85 | AB86: 1.06
A87: №288 | B87: Курица отварная | C87: 100 | D87: 100 | E87: 9.44 | F87: 9.44 | G87: 6.74 | H87: 6.74 | I87: 0.52 | J87: 0.52 | K87: 130 | L87: 130 | M87: 0.04 | N87: 0.04 | O87: 0.09 | P87: 0.09 | Q87: 0.15 | R87: 0.15 | S87: 6.34 | T87: 6.34 | U87: 14.5 | V87: 14.5 | W87: 1.35 | X87: 1.35 | Y87: 19.7 | Z87: 19.7 | AA87: 1.3 | AB87: 1.3
A88: №333 | B88: Соус томатный с овощами | C88: 30 | D88: 30 | E88: 0.3 | F88: 0.3 | G88: 1.4 | H88: 1.4 | I88: 1.8 | J88: 1.8 | K88: 21 | L88: 21 | M88: 0.12 | N88: 0.1 | O88: 0.07 | P88: 0.07 | Q88: 0.08 | R88: 0.08 | S88: 0.48 | T88: 0.48 | U88: 3.27 | V88: 3.27 | W88: 5.32 | X88: 5.32 | Y88: 2.19 | Z88: 2.19 | AA88: 0.07 | AB88: 0.07
B89: Хлеб пшеничный /ржано-пшеничный | C89: 30 | D89: 50 | E89: 3.37 | F89: 5.62 | G89: 1.78 | H89: 2.97 | I89: 12.6 | J89: 21 | K89: 90 | L89: 150 | M89: 0 | N89: 0 | O89: 0.05 | P89: 0.07 | Q89: 0.015 | R89: 0.02 | S89: 0 | T89: 0 | U89: 6.9 | V89: 11.5 | W89: 0 | X89: 0 | Y89: 0 | Z89: 0 | AA89: 0.6 | AB89: 0.08
A90: №376 | B90: Чай с сахаром | C90: 200/15 | D90: 200/15 | E90: 0.2 | F90: 0.2 | G90: 0.05 | H90: 0.05 | I90: 15.01 | J90: 15.01 | K90: 61.29 | L90: 61.29 | M90: 0.05 | N90: 0.05 | O90: 0 | P90: 0 | Q90: 0.01 | R90: 0.01 | S90: 0.1 | T90: 0.1 | U90: 5.25 | V90: 5.25 | W90: 8.24 | X90: 8.24 | Y90: 4.4 | Z90: 4.4 | AA90: 0.86 | AB90: 0.86
B91: Итого за завтрак: | E91: =E85+E86+E87+E88+E89+E90+E97 -> 22.97 | F91: 29.38 | G91: 21.17 | H91: 28.16 | I91: =I85+I86+I87+I88+I89+I90+I97 -> 87.68 | J91: 101.44 | K91: =K85+K86+K87+K88+K89+K90 -> 581.97 | L91: 723.89 | M91: 0.24 | N91: 0.23 | O91: 0.315 | P91: 0.266 | Q91: 0.3 | R91: 0.323 | S91: 12.42 | T91: 14.92 | U91: 164.77 | V91: 209.64 | W91: 284.33 | X91: 359.86 | Y91: 45.15 | Z91: 54.24 | AA91: 4.31 | AB91: 4.42
B92: Обед
A93: №70 | B93: Огурцы соленые | C93: 60 | D93: 100 | E93: 0.5 | F93: 0.83 | G93: 0.6 | H93: 1 | I93: 1.56 | J93: 2.6 | K93: 8.4 | L93: 14 | M93: 0 | N93: 0 | O93: 0.01 | P93: 0.016 | Q93: 0.024 | R93: 0.04 | S93: 6 | T93: 10 | U93: 13.8 | V93: 23 | W93: 25.2 | X93: 42 | Y93: 8.4 | Z93: 14 | AA93: 0.36 | AB93: 0.6
A94: №101 | B94: Суп картофельный с крупой (пшённый) на мкб со сметаной | C94: 250/15/10 | D94: 250/15/10 | E94: 7.38 | F94: 7.38 | G94: 6.5 | H94: 6.5 | I94: 20.5 | J94: 20.5 | K94: 192 | L94: 192 | M94: 0 | N94: 0 | O94: 0.15 | P94: 0.15 | Q94: 0.44 | R94: 0.44 | S94: 10.5 | T94: 10.5 | U94: 109.6 | V94: 109.6 | W94: 112.8 | X94: 112.8 | Y94: 45.74 | Z94: 45.75 | AA94: 1.9 | AB94: 1.9
A95: №142 | B95: Картофель тушеный с овощами | C95: 150 | D95: 180 | E95: 3.4 | F95: 4.08 | G95: 5.7 | H95: 6.84 | I95: 26.64 | J95: 31.96 | K95: 224 | L95: 268.8 | M95: 1.8 | N95: 2.16 | O95: 0.19 | P95: 0.22 | Q95: 3.4 | R95: 4.08 | S95: 3.9 | T95: 4.68 | U95: 29.06 | V95: 34.87 | W95: 104 | X95: 124.8 | Y95: 43.2 | Z95: 51.8 | AA95: 1.88 | AB95: 2.25
A96: №279 | B96: Тефтели мясные | C96: 100 | D96: 100 | E96: 9.99 | F96: 9.99 | G96: 9.1 | H96: 9.1 | I96: 24.4 | J96: 24.4 | K96: 204 | L96: 204 | M96: 0 | N96: 0 | O96: 0.06 | P96: 0.06 | Q96: 0.13 | R96: 0.13 | S96: 1.37 | T96: 1.37 | U96: 13.12 | V96: 13.12 | W96: 153.75 | X96: 153.75 | Y96: 27.5 | Z96: 27.5 | AA96: 1.87 | AB96: 1.87
B97: Хлеб пшеничный /ржано-пшеничный | C97: 30 | D97: 50 | E97: 3.37 | F97: 5.62 | G97: 1.78 | H97: 2.97 | I97: 12.6 | J97: 21 | K97: 90 | L97: 150 | M97: 0 | N97: 0 | O97: 0.05 | P97: 0.07 | Q97: 0.015 | R97: 0.02 | S97: 0 | T97: 0 | U97: 6.9 | V97: 11.5 | W97: 0 | X97: 0 | Y97: 0 | Z97: 0 | AA97: 0.6 | AB97: 0.08
A98: №376 | B98: Чай с сахаром | C98: 200/15 | D98: 200/15 | E98: 0.2 | F98: 0.2 | G98: 0.05 | H98: 0.05 | I98: 15.01 | J98: 15.01 | K98: 61.29 | L98: 61.29 | M98: 0.05 | N98: 0.05 | O98: 0 | P98: 0 | Q98: 0.01 | R98: 0.01 | S98: 0.1 | T98: 0.1 | U98: 5.25 | V98: 5.25 | W98: 8.24 | X98: 8.24 | Y98: 4.4 | Z98: 4.4 | AA98: 0.86 | AB98: 0.86
B99: Итого за обед: | E99: =E94+E95+E96+E97+E98+E93 -> 24.84 | F99: =F94+F95+F96+F97+F98+F93 -> 28.1 | G99: 23.73 | H99: 26.46 | I99: =I94+I95+I96+I97+I98+I93+I85 -> 109.52 | J99: =J94+J95+J96+J97+J98+J93+J85 -> 130.15 | K99: 779.69 | L99: 890.09 | M99: 1.85 | N99: 2.21 | O99: 0.46 | P99: 0.516 | Q99: 4.019 | R99: 4.72 | S99: 21.87 | T99: 26.65 | U99: =U94+U95+U96+U97+U98+U93+U86 -> 295.83 | V99: =V94+V95+V96+V97+V98+V93+V86 -> 344.54 | W99: 403.99 | X99: 441.59 | Y99: 129.24 | Z99: 143.45 | AA99: 7.47 | AB99: 7.56
B100: Итого за 1 день: | E100: =E91+E99 -> 47.81 | F100: 55.48 | G100: =G91+G99 -> 44.9 | H100: 54.62 | I100: 197.2 | J100: 231.59 | K100: 1361.66 | L100: 1613.98 | M100: 2.09 | N100: 2.44 | O100: 0.775 | P100: 0.782 | Q100: 4.319 | R100: 5.043 | S100: 34.29 | T100: 41.57 | U100: 460.6 | V100: 554.18 | W100: 688.32 | X100: 801.45 | Y100: 174.39 | Z100: 197.69 | AA100: 11.78 | AB100: 11.98
B102: День 6 / Суббота
B103: Завтрак
A104: №338 | B104: Фрукт | C104: 200 | D104: 200 | E104: 0.52 | F104: 0.52 | G104: 0.34 | H104: 0.34 | I104: 28.82 | J104: 28.82 | K104: 104 | L104: 104 | M104: 0 | N104: 0 | O104: 0.05 | P104: 0.05 | Q104: 0.03 | R104: 0.03 | S104: 20.8 | T104: 20.8 | U104: 25.6 | V104: 25.6 | W104: 0.02 | X104: 0.02 | Y104: 30.4 | Z104: 30.4 | AA104: 1.5 | AB104: 1.5
A105: №175 | B105: Каша "Дружба" молочная со сливочным маслом | C105: 200/5/10 | D105: 200/5/10 | E105: 6.4 | F105: 6.44 | G105: 7.29 | H105: 7.29 | I105: 35.97 | J105: 35.97 | K105: 172 | L105: 172 | M105: 0.05 | N105: 0.05 | O105: 0.13 | P105: 0.13 | Q105: 0.16 | R105: 0.16 | S105: 1.3 | T105: 1.3 | U105: 33.9 | V105: 33.9 | W105: 166 | X105: 166 | Y105: 39.65 | Z105: 39.65 | AA105: 0.81 | AB105: 0.81
A106: №410 | B106: Ватрушка с творогом | C106: 60 | D106: 60 | E106: 7.9 | F106: 7.9 | G106: 6.9 | H106: 6.9 | I106: 33.13 | J106: 33.13 | K106: 208 | L106: 208 | M106: 0.01 | N106: 0.01 | O106: 0.07 | P106: 0.07 | Q106: 0.08 | R106: 0.08 | S106: 0.22 | T106: 0.22 | U106: 141.71 | V106: 141.71 | W106: 78.88 | X106: 78.88 | Y106: 11.68 | Z106: 11.68 | AA106: 0.58 | AB106: 0.58
B107: Хлеб пшеничный /ржано-пшеничный | C107: 30 | D107: 50 | E107: 3.37 | F107: 5.62 | G107: 1.78 | H107: 2.97 | I107: 12.6 | J107: 21 | K107: 90 | L107: 150 | M107: 0 | N107: 0 | O107: 0.05 | P107: 0.07 | Q107: 0.015 | R107: 0.02 | S107: 0 | T107: 0 | U107: 6.9 | V107: 11.5 | W107: 0 | X107: 0 | Y107: 0 | Z107: 0 | AA107: 0.6 | AB107: 0.08
A108: №376 | B108: Чай с сахаром | C108: 200/15 | D108: 200/15 | E108: 0.2 | F108: 0.2 | G108: 0.05 | H108: 0.05 | I108: 15.01 | J108: 15.01 | K108: 61.29 | L108: 61.29 | M108: 0.05 | N108: 0.05 | O108: 0 | P108: 0 | Q108: 0.01 | R108: 0.01 | S108: 0.1 | T108: 0.1 | U108: 5.25 | V108: 5.25 | W108: 8.24 | X108: 8.24 | Y108: 4.4 | Z108: 4.4 | AA108: 0.86 | AB108: 0.86
B109: Итого за завтрак: | E109: =E104+E105+E106+E107+E108 -> 18.39 | F109: =F104+F105+F106+F107+F108 -> 20.68 | G109: 16.36 | H109: 17.55 | I109: 125.53 | J109: 133.93 | K109: 635.29 | L109: 695.29 | M109: 0.11 | N109: 0.11 | O109: 0.3 | P109: 0.32 | Q109: 0.295 | R109: 0.3 | S109: 22.42 | T109: 22.42 | U109: 213.36 | V109: 217.96 | W109: 253.14 | X109: 253.14 | Y109: 86.13 | Z109: 86.13 | AA109: 4.35 | AB109: 3.83
B110: Обед
A111: №67 | B111: Винегрет овощной | C111: 60 | D111: 100 | E111: 0.85 | F111: 1.41 | G111: 4.9 | H111: 8.18 | I111: 5.86 | J111: 9.78 | K111: 81.95 | L111: 136.59 | M111: 0 | N111: 0 | O111: 0.048 | P111: 0.06 | Q111: 0.024 | R111: 0.04 | S111: 15 | T111: 25 | U111: 8.4 | V111: 14 | W111: 15.6 | X111: 26 | Y111: 12 | Z111: 20 | AA111: 0.58 | AB111: 0.9
A112: №96 | B112: Рассольник Ленинградский на мкб со сметаной | C112: 250/15/10 | D112: 250/15/10 | E112: 7.02 | F112: 7.02 | G112: 8.2 | H112: 8.2 | I112: 17.32 | J112: 17.32 | K112: 171.3 | L112: 171.3 | M112: 0.18 | N112: 0.18 | O112: 0.12 | P112: 0.12 | Q112: 0.1 | R112: 0.1 | S112: 10.68 | T112: 10.68 | U112: 28.84 | V112: 28.84 | W112: 105.4 | X112: 105.4 | Y112: 29.7 | Z112: 29.7 | AA112: 1.38 | AB112: 1.38
A113: №263 | B113: Рагу овощное с говядиной | C113: 200 | D113: 220 | E113: 15.14 | F113: 16.65 | G113: 14.9 | H113: 16.39 | I113: 12.95 | J113: 14.24 | K113: 246 | L113: 270.6 | M113: 0.18 | N113: 0.185 | O113: 0.12 | P113: 0.13 | Q113: 0.17 | R113: 0.2 | S113: 20.79 | T113: 23.29 | U113: 45.9 | V113: 50.5 | W113: 188 | X113: 206 | Y113: 41.3 | Z113: 45.4 | AA113: 2.7 | AB113: 3.05
A114: №348 | B114: Компот из сухофруктов | C114: 200 | D114: 200 | E114: 0.54 | F114: 0.54 | G114: 0 | H114: 0 | I114: 17.58 | J114: 17.58 | K114: 70.53 | L114: 70.53 | M114: 0.18 | N114: 0.18 | O114: 0.005 | P114: 0.005 | Q114: 0.02 | R114: 0.02 | S114: 0.03 | T114: 0.03 | U114: 2.56 | V114: 2.56 | W114: 3.56 | X114: 3.56 | Y114: 1.74 | Z114: 1.74 | AA114: 0.1 | AB114: 0.1
B115: Хлеб пшеничный /ржано-пшеничный | C115: 30 | D115: 50 | E115: 3.37 | F115: 5.62 | G115: 1.78 | H115: 2.97 | I115: 12.6 | J115: 21 | K115: 90 | L115: 150 | M115: 0 | N115: 0 | O115: 0.05 | P115: 0.07 | Q115: 0.015 | R115: 0.02 | S115: 0 | T115: 0 | U115: 6.9 | V115: 11.5 | W115: 0 | X115: 0 | Y115: 0 | Z115: 0 | AA115: 0.6 | AB115: 0.08
A116: №219 | B116: Сырники из творога | C116: 100 | D116: 100 | E116: 8.26 | F116: 8.26 | G116: 2.59 | H116: 2.59 | I116: 19.6 | J116: 19.6 | K116: 159.5 | L116: 159.5 | M116: 0.027 | N116: 0.027 | O116: 0.05 | P116: 0.05 | Q116: 0.19 | R116: 0.19 | S116: 0.34 | T116: 0.34 | U116: 87.69 | V116: 87.69 | W116: 151 | X116: 151 | Y116: 19.33 | Z116: 19.33 | AA116: 0.53 | AB116: 0.53
B117: Итого за обед: | E117: =E112+E113+E114+E115+E111 -> 26.92 | F117: =F112+F113+F114+F115+F111 -> 31.24 | G117: =G112+G113+G114+G115+G116+G111 -> 32.37 | H117: 38.33 | I117: 85.91 | J117: 99.52 | K117: 819.28 | L117: 958.52 | M117: 0.567 | N117: 0.572 | O117: 0.393 | P117: 0.435 | Q117: 0.519 | R117: 0.57 | S117: 46.84 | T117: 59.34 | U117: =U112+U113+U114+U115+U116+U111+U106 -> 322 | V117: =V112+V113+V114+V115+V116+V111+V106 -> 336.8 | W117: 463.56 | X117: 491.96 | Y117: 104.07 | Z117: 116.17 | AA117: 5.89 | AB117: 6.04
B118: Итого за 1 день: | E118: =E109+E117 -> 45.31 | F118: =F109+F117 -> 51.92 | G118: 48.73 | H118: 53.67 | I118: 211.44 | J118: 233.45 | K118: 1454.57 | L118: 1653.81 | M118: 0.677 | N118: 0.682 | O118: 0.693 | P118: 0.755 | Q118: 0.814 | R118: 0.87 | S118: 69.26 | T118: 81.76 | U118: 535.36 | V118: 554.76 | W118: 716.7 | X118: 745.1 | Y118: 190.2 | Z118: 202.3 | AA118: 10.24 | AB118: 9.87
B120: День 7 / Понедельник
B121: Завтрак
A122: №45 | B122: Салат из белокачанной капусты (до 1 марта) /Огурцы соленые (после 1 марта) | C122: 60 | D122: 100 | E122: 0.96 | F122: 0.57 | G122: 3.05 | H122: 5.08 | I122: 10.82 | J122: 18.03 | K122: 33.3 | L122: 55.5 | M122: 0.31 | N122: 0.52 | O122: 0.04 | P122: 0.06 | Q122: 0.05 | R122: 0.08 | S122: 6.3 | T122: 10.5 | U122: 13.38 | V122: 22.3 | W122: 35.1 | X122: 58.8 | Y122: 11.04 | Z122: 18.4 | AA122: 0.53 | AB122: 0.88
A123: №203 | B123: Макароны отварные со сливочным маслом | C123: 150 | D123: 180 | E123: 5.47 | F123: 6.84 | G123: 6.37 | H123: 8.95 | I123: 36.34 | J123: 45.43 | K123: 224 | L123: 268.8 | M123: 0.03 | N123: 0.04 | O123: 0.09 | P123: 0.011 | Q123: 0.02 | R123: 0.03 | S123: 0 | T123: 0 | U123: 11.81 | V123: 14.7 | W123: 47.64 | X123: 59.5 | Y123: 8.36 | Z123: 10.45 | AA123: 0.85 | AB123: 1.06
A124: №301 | B124: Кнели куриные | C124: 100 | D124: 100 | E124: 15.14 | F124: 15.14 | G124: 10.6 | H124: 10.6 | I124: 6.95 | J124: 6.95 | K124: 228 | L124: 228 | M124: 0.04 | N124: 0.04 | O124: 0.1 | P124: 0.1 | Q124: 0.14 | R124: 0.14 | S124: 5.87 | T124: 5.87 | U124: 18.4 | V124: 18.4 | W124: 50 | X124: 50 | Y124: 28.38 | Z124: 28.38 | AA124: 1.48 | AB124: 1.48
B125: Хлеб пшеничный /ржано-пшеничный | C125: 30 | D125: 50 | E125: 3.37 | F125: 5.62 | G125: 1.78 | H125: 2.97 | I125: 12.6 | J125: 21 | K125: 90 | L125: 150 | M125: 0 | N125: 0 | O125: 0.05 | P125: 0.07 | Q125: 0.015 | R125: 0.02 | S125: 0 | T125: 0 | U125: 6.9 | V125: 11.5 | W125: 0 | X125: 0 | Y125: 0 | Z125: 0 | AA125: 0.6 | AB125: 0.08
A126: №348 | B126: Компот из сухофруктов | C126: 200 | D126: 200 | E126: 0.54 | F126: 0.54 | G126: 0 | H126: 0 | I126: 17.58 | J126: 17.58 | K126: 70.53 | L126: 70.73 | M126: 0.18 | N126: 0.18 | O126: 0.005 | P126: 0.005 | Q126: 0.02 | R126: 0.02 | S126: 0.03 | T126: 0.03 | U126: 2.56 | V126: 2.56 | W126: 3.56 | X126: 3.56 | Y126: 1.74 | Z126: 1.74 | AA126: 0.1 | AB126: 0.1
B127: Итого за завтрак: | E127: =E122+E123+E124+E125+E126 -> 25.48 | F127: =F122+F123+F124+F125+F126 -> 28.71 | G127: 21.8 | H127: 27.6 | I127: 84.29 | J127: 108.99 | K127: 645.83 | L127: 773.03 | M127: 0.56 | N127: 0.78 | O127: 0.285 | P127: 0.246 | Q127: 0.245 | R127: 0.29 | S127: 12.2 | T127: 16.4 | U127: 53.05 | V127: 69.46 | W127: 136.3 | X127: 171.86 | Y127: 49.52 | Z127: 58.97 | AA127: 3.56 | AB127: 3.6
B128: Обед
A129: №52 | B129: Салат из свеклы | C129: 60 | D129: 100 | E129: 0.87 | F129: 1.45 | G129: 4.05 | H129: 6.75 | I129: 9.22 | J129: 15.36 | K129: 53.82 | L129: 89.7 | M129: 0 | N129: 0 | O129: 0.01 | P129: 0.02 | Q129: 0.015 | R129: 0.03 | S129: 5.09 | T129: 10.18 | U129: 14.63 | V129: 24.38 | W129: 16.05 | X129: 26.75 | Y129: 9.95 | Z129: 16.58 | AA129: 0 | AB129: 0
A130: №101 | B130: Суп картофельный с крупой (гречневый) с фрикаделдьками | C130: 250/15 | D130: 250/15 | E130: 7.38 | F130: 7.38 | G130: 7.5 | H130: 7.5 | I130: 23.5 | J130: 23.5 | K130: 188 | L130: 188 | M130: 0 | N130: 0 | O130: 0.15 | P130: 0.15 | Q130: 0.104 | R130: 0.104 | S130: 16.5 | T130: 16.5 | U130: 19.06 | V130: 19.06 | W130: 112.8 | X130: 112.8 | Y130: 45.75 | Z130: 45.75 | AA130: 1.9 | AB130: 1.9
A131: №306 | B131: Пюре гороховое | C131: 150 | D131: 180 | E131: 8.79 | F131: 10.54 | G131: 8.82 | H131: 9.58 | I131: 38.15 | J131: 45.78 | K131: 205 | L131: 228 | M131: 0.03 | N131: 0.04 | O131: 0.045 | P131: 0.054 | Q131: 0.01 | R131: 0.011 | S131: 0 | T131: 0 | U131: 146.2 | V131: 155.8 | W131: 115.4 | X131: 136.6 | Y131: 44.04 | Z131: 52.85 | AA131: 0.35 | AB131: 0.42
A132: №243 | B132: Сосиска отварная | C132: 100 | D132: 100 | E132: 10.6 | F132: 10.6 | G132: 13 | H132: 13 | I132: 8.5 | J132: 8.5 | K132: 191 | L132: 191 | M132: 0 | N132: 0 | O132: 0 | P132: 0 | Q132: 0 | R132: 0 | S132: 0 | T132: 0 | U132: 23.64 | V132: 23.64 | W132: 165.36 | X132: 165.36 | Y132: 20.8 | Z132: 20.8 | AA132: 1.87 | AB132: 1.87
A133: №376 | B133: Чай с сахаром | C133: 200/15 | D133: 200/15 | E133: 0.2 | F133: 0.2 | G133: 0.05 | H133: 0.05 | I133: 15.01 | J133: 15.01 | K133: 61.29 | L133: 61.29 | M133: 0.05 | N133: 0.05 | O133: 0 | P133: 0 | Q133: 0.01 | R133: 0.01 | S133: 0.1 | T133: 0.1 | U133: 5.25 | V133: 5.25 | W133: 8.24 | X133: 8.24 | Y133: 4.4 | Z133: 4.4 | AA133: 0.86 | AB133: 0.86
B134: Хлеб пшеничный /ржано-пшеничный | C134: 30 | D134: 50 | E134: 3.37 | F134: 5.62 | G134: 1.78 | H134: 2.97 | I134: 12.6 | J134: 21 | K134: 90 | L134: 150 | M134: 0 | N134: 0 | O134: 0.05 | P134: 0.07 | Q134: 0.015 | R134: 0.02 | S134: 0 | T134: 0 | U134: 6.9 | V134: 11.5 | W134: 0 | X134: 0 | Y134: 0 | Z134: 0 | AA134: 0.6 | AB134: 0.08
B135: Итого за обед: | E135: =E129+E130+E131+E132+E133 -> 27.84 | F135: =F129+F130+F131+F132+F133 -> 30.17 | G135: =G130+G131+G132+G133 -> 29.37 | H135: =H130+H131+H132+H133 -> 30.13 | I135: =I129+I130+I131+I132+I133+I134 -> 106.98 | J135: =J129+J130+J131+J132+J133+J134 -> 129.15 | K135: =K129+K130+K131+K132+K133+K134 -> 789.11 | L135: 907.99 | M135: 0.08 | N135: 0.09 | O135: 0.255 | P135: 0.294 | Q135: 0.154 | R135: 0.175 | S135: 21.69 | T135: 26.78 | U135: 215.68 | V135: 239.63 | W135: 417.85 | X135: 449.75 | Y135: 124.94 | Z135: 140.38 | AA135: 5.58 | AB135: 5.13
B136: Итого за 1 день: | E136: =E127+E135 -> 53.32 | F136: =F127+F135 -> 58.88 | G136: 51.17 | H136: 57.73 | I136: 191.27 | J136: 238.14 | K136: 1434.94 | L136: 1681.02 | M136: 0.64 | N136: 0.87 | O136: 0.54 | P136: 0.54 | Q136: 0.399 | R136: 0.465 | S136: 33.89 | T136: 43.18 | U136: 268.73 | V136: 309.09 | W136: =W127+W135 -> 554.15 | X136: 621.61 | Y136: 174.46 | Z136: 199.35 | AA136: 9.14 | AB136: 8.73
B137: День 8 / Вторник
B138: Завтрак
A139: №15 | B139: Сыр | C139: 15 | D139: 15 | E139: 3.9 | F139: 3.9 | G139: 3.97 | H139: 3.97 | I139: 0.52 | J139: 0.52 | K139: 54.75 | L139: 54.75 | M139: 0.6 | N139: 0.6 | O139: 0 | P139: 0 | Q139: 0 | R139: 0 | S139: 0.04 | T139: 0.04 | U139: 30.5 | V139: 30.5 | W139: 81 | X139: 81 | Y139: 0.75 | Z139: 0.75 | AA139: 0.14 | AB139: 0.14
A140: №173 | B140: Каша молочная рисовая со сливочным маслом | C140: 200/5/10 | D140: 200/5/10 | E140: 6.4 | F140: 6.44 | G140: 7.29 | H140: 7.29 | I140: 35.97 | J140: 35.97 | K140: 232 | L140: 232 | M140: 0.05 | N140: 0.05 | O140: 0.13 | P140: 0.13 | Q140: 0.16 | R140: 0.16 | S140: 1.3 | T140: 1.3 | U140: 339 | V140: 339 | W140: 166 | X140: 166 | Y140: 39.65 | Z140: 39.65 | AA140: 0.81 | AB140: 0.81
A141: №418 | B141: Пирожок с повидлом | C141: 60 | D141: 60 | E141: 4.6 | F141: 4.6 | G141: 5.87 | H141: 5.87 | I141: 42.31 | J141: 42.31 | K141: 207 | L141: 207 | M141: 0.01 | N141: 0.01 | O141: 0.06 | P141: 0.06 | Q141: 0.04 | R141: 0.04 | S141: 0.25 | T141: 0.25 | U141: 22.01 | V141: 22.01 | W141: 41.55 | X141: 41.55 | Y141: 8.55 | Z141: 8.55 | AA141: 0.75 | AB141: 0.75
A142: №342 | B142: Компот из фруктов свежих | C142: 200 | D142: 200 | E142: 0.17 | F142: 0.17 | G142: 0.17 | H142: 0.17 | I142: 19.18 | J142: 19.18 | K142: 76.8 | L142: 76.8 | M142: 0 | N142: 0 | O142: 0.01 | P142: 0.01 | Q142: 0.01 | R142: 0.01 | S142: 5.59 | T142: 5.59 | U142: 7.1 | V142: 7.1 | W142: 4.73 | X142: 4.73 | Y142: 8.17 | Z142: 8.17 | AA142: 0 | AB142: 0
B143: Хлеб пшеничный /ржано-пшеничный | C143: 30 | D143: 50 | E143: 3.37 | F143: 5.62 | G143: 1.78 | H143: 2.97 | I143: 12.6 | J143: 21 | K143: 90 | L143: 150 | M143: 0 | N143: 0 | O143: 0.05 | P143: 0.07 | Q143: 0.015 | R143: 0.02 | S143: 0 | T143: 0 | U143: 6.9 | V143: 11.5 | W143: 0 | X143: 0 | Y143: 0 | Z143: 0 | AA143: 0.6 | AB143: 0.08
B144: Итого за завтрак: | E144: =E140+E141+E142+E143 -> 14.54 | F144: =F140+F141+F142+F143+F139 -> 20.73 | G144: =G140+G141+G142+G143+G148 -> 22.21 | H144: =H140+H141+H142+H143+H148 -> 24.82 | I144: =I140+I141+I142+I143 -> 110.06 | J144: 118.46 | K144: 605.8 | L144: 665.8 | M144: 0.06 | N144: 0.06 | O144: 0.25 | P144: 0.27 | Q144: 0.225 | R144: 0.23 | S144: 7.14 | T144: 7.14 | U144: 375.01 | V144: 379.61 | W144: 212.28 | X144: 212.28 | Y144: 56.37 | Z144: 56.37 | AA144: 2.16 | AB144: 1.64
B145: Обед
A146: №66 | B146: Салат из моркови (до 1 марта) /Салат из припущенной моркови с яблоками(после 1 марта) | C146: 60 | D146: 100 | E146: 0.75 | F146: 1.25 | G146: 4.05 | H146: 6.75 | I146: 8.16 | J146: 13.6 | K146: 77.06 | L146: 128.4 | M146: 0 | N146: 0 | O146: 0.03 | P146: 0.05 | Q146: 0.04 | R146: 0.066 | S146: 2.9 | T146: 4.8 | U146: 29.6 | V146: 49.3 | W146: 31.9 | X146: 53 | Y146: 22.04 | Z146: 36.7 | AA146: 0.41 | AB146: 0.62
A147: №112 | B147: Суп с макаронными изделиями на мкб со сметаной | C147: 250/15/10 | D147: 250/15/10 | E147: 8.36 | F147: 8.36 | G147: 6.33 | H147: 6.33 | I147: 27.44 | J147: 27.44 | K147: 200 | L147: 200 | M147: 0.01 | N147: 0.01 | O147: 0.13 | P147: 0.13 | Q147: 0.09 | R147: 0.09 | S147: 12.77 | T147: 12.77 | U147: 20.65 | V147: 20.65 | W147: 60.4 | X147: 60.4 | Y147: 25.67 | Z147: 25.67 | AA147: 1.35 | AB147: 1.35
A148: №312 | B148: Картофельное пюре | C148: 150 | D148: 180 | E148: 3.43 | F148: 4.11 | G148: 7.1 | H148: 8.52 | I148: 25.3 | J148: 30.36 | K148: 170 | L148: 204 | M148: 0.03 | N148: 0.04 | O148: 0.17 | P148: 0.2 | Q148: 0.13 | R148: 0.15 | S148: 27.31 | T148: 32.77 | U148: 80.2 | V148: 86.28 | W148: 102.3 | X148: 123 | Y148: 34.45 | Z148: 41.37 | AA148: 1.24 | AB148: 1.5
A149: №229 | B149: Рыба припущенная | C149: 100/50 | D149: 100/50 | E149: 11.4 | F149: 11.4 | G149: 7.04 | H149: 7.04 | I149: 12.76 | J149: 12.76 | K149: 204 | L149: 204 | M149: 0.04 | N149: 0.04 | O149: 0.11 | P149: 0.11 | Q149: 0.12 | R149: 0.12 | S149: 2.55 | T149: 2.55 | U149: 52.95 | V149: 52.95 | W149: 239.39 | X149: 239.39 | Y149: 56.27 | Z149: 56.27 | AA149: 0.89 | AB149: 0.89
A150: №376 | B150: Чай с сахаром | C150: 200/15 | D150: 200/15 | E150: 0.2 | F150: 0.2 | G150: 0.05 | H150: 0.05 | I150: 15.01 | J150: 15.01 | K150: 61.29 | L150: 61.29 | M150: 0.05 | N150: 0.05 | O150: 0 | P150: 0 | Q150: 0.01 | R150: 0.01 | S150: 0.1 | T150: 0.1 | U150: 5.25 | V150: 5.25 | W150: 8.24 | X150: 8.24 | Y150: 4.4 | Z150: 4.4 | AA150: 0.86 | AB150: 0.86
B151: Хлеб пшеничный /ржано-пшеничный | C151: 30 | D151: 50 | E151: 3.37 | F151: 5.62 | G151: 1.78 | H151: 2.97 | I151: 12.6 | J151: 21 | K151: 90 | L151: 150 | M151: 0 | N151: 0 | O151: 0.05 | P151: 0.07 | Q151: 0.015 | R151: 0.02 | S151: 0 | T151: 0 | U151: 6.9 | V151: 11.5 | W151: 0 | X151: 0 | Y151: 0 | Z151: 0 | AA151: 0.6 | AB151: 0.08
B152: Итого за обед: | E152: =E147+E148+E149+E150+E151+E139 -> 30.66 | F152: 33.59 | G152: 26.27 | H152: 28.88 | I152: 93.63 | J152: 107.09 | K152: 780.04 | L152: 874.04 | M152: 0.73 | N152: 0.74 | O152: 0.46 | P152: 0.51 | Q152: 0.365 | R152: 0.39 | S152: 42.77 | T152: 48.23 | U152: 196.45 | V152: 207.13 | W152: 491.33 | X152: 512.03 | Y152: 121.54 | Z152: 128.46 | AA152: 5.08 | AB152: 4.82
B153: Итого за 1 день: | E153: =E152+E144 -> 45.2 | F153: =F152+F144 -> 54.32 | G153: 48.48 | H153: 53.7 | I153: 203.69 | J153: 225.55 | K153: 1385.84 | L153: =L152+L144+L139 -> 1594.59 | M153: 0.79 | N153: 0.8 | O153: 0.71 | P153: 0.78 | Q153: 0.59 | R153: 0.62 | S153: 49.91 | T153: 55.37 | U153: 571.46 | V153: 586.74 | W153: 703.61 | X153: 724.31 | Y153: 177.91 | Z153: 184.83 | AA153: 7.24 | AB153: 6.46
B155: День 9 / Среда
B156: Завтрак
A157: №71 | B157: Огурцы свежие | C157: 60 | D157: 100 | E157: 0.5 | F157: 0.83 | G157: 0.6 | H157: 1 | I157: 1.56 | J157: 2.6 | K157: 8.4 | L157: 14 | M157: 0 | N157: 0 | O157: 0.01 | P157: 0.016 | Q157: 0.024 | R157: 0.04 | S157: 6 | T157: 10 | U157: 13.8 | V157: 23 | W157: 25.2 | X157: 42 | Y157: 8.4 | Z157: 14 | AA157: 0.36 | AB157: 0.6
A158: №312,№321 | B158: Сложный гарнир | C158: 150 | D158: 180 | E158: 5.01 | F158: 6.01 | G158: 7.8 | H158: 9.36 | I158: 23.43 | J158: 28.11 | K158: 170.6 | L158: 194.7 | M158: 0.45 | N158: 0.54 | O158: 0.1 | P158: 0.12 | Q158: 0.12 | R158: 0.14 | S158: 13.4 | T158: 18.08 | U158: 250 | V158: 280 | W158: 105 | X158: 126 | Y158: 62 | Z158: 74.4 | AA158: 2.32 | AB158: 2.78
A159: №268 | B159: Котлета из говядины | C159: 100 | D159: 100 | E159: 12.7 | F159: 12.7 | G159: 9.92 | H159: 9.92 | I159: 13.52 | J159: 13.52 | K159: 236 | L159: 236 | M159: 0.012 | N159: 0.012 | O159: 0.1 | P159: 0.1 | Q159: 0.13 | R159: 0.13 | S159: 1.62 | T159: 1.62 | U159: 198.7 | V159: 198.7 | W159: 351 | X159: 351 | Y159: 18.85 | Z159: 18.85 | AA159: 0.62 | AB159: 0.62
A160: №333 | B160: Соус томатный с овощами | C160: 30 | D160: 30 | E160: 0.3 | F160: 0.3 | G160: 1.4 | H160: 1.4 | I160: 1.8 | J160: 1.8 | K160: 21 | L160: 21 | M160: 0.12 | N160: 0.1 | O160: 0.07 | P160: 0.07 | Q160: 0.08 | R160: 0.08 | S160: 0.48 | T160: 0.48 | U160: 3.27 | V160: 3.27 | W160: 5.32 | X160: 5.32 | Y160: 2.19 | Z160: 2.19 | AA160: 0.07 | AB160: 0.07
B161: Хлеб пшеничный /ржано-пшеничный | C161: 30 | D161: 50 | E161: 3.37 | F161: 5.62 | G161: 1.78 | H161: 2.97 | I161: 12.6 | J161: 21 | K161: 90 | L161: 150 | M161: 0 | N161: 0 | O161: 0.05 | P161: 0.07 | Q161: 0.015 | R161: 0.02 | S161: 0 | T161: 0 | U161: 6.9 | V161: 11.5 | W161: 0 | X161: 0 | Y161: 0 | Z161: 0 | AA161: 0.6 | AB161: 0.08
A162: №359 | B162: Кисель | C162: 200 | D162: 200 | E162: 0 | F162: 0 | G162: 0 | H162: 0 | I162: 35.94 | J162: 35.94 | K162: 118 | L162: 118 | M162: 0 | N162: 0 | O162: 0 | P162: 0 | Q162: 0 | R162: 0 | S162: 0 | T162: 0 | U162: 0.3 | V162: 0.3 | W162: 0 | X162: 0 | Y162: 0 | Z162: 0 | AA162: 0.45 | AB162: 0.45
B163: Итого за завтрак: | E163: =E157+E158+E159+E160+E161+E162 -> 21.88 | F163: =F157+F158+F159+F160+F161+F162 -> 25.46 | G163: 21.5 | H163: 24.65 | I163: 88.85 | J163: 102.97 | K163: =K157+K158+K159+K160+K161 -> 526 | L163: =L157+L158+L159+L160+L161 -> 615.7 | M163: 0.582 | N163: 0.652 | O163: 0.33 | P163: 0.376 | Q163: 0.369 | R163: 0.41 | S163: 21.5 | T163: 30.18 | U163: =U157+U158+U159+U160+U161+U162 -> 472.97 | V163: 516.77 | W163: 486.52 | X163: 524.32 | Y163: 91.44 | Z163: 109.44 | AA163: 4.42 | AB163: 4.6
B164: Обед
A165: №52 | B165: Свекла отварная | C165: 60 | D165: 100 | E165: 0.87 | F165: 1.45 | G165: 4.05 | H165: 6.75 | I165: 9.22 | J165: 15.36 | K165: 53.82 | L165: 89.7 | M165: 0 | N165: 0 | O165: 0.01 | P165: 0.02 | Q165: 0.015 | R165: 0.03 | S165: 5.09 | T165: 10.18 | U165: 14.63 | V165: 24.38 | W165: 16.05 | X165: 26.75 | Y165: 9.95 | Z165: 16.58 | AA165: 0 | AB165: 0
A166: №88 | B166: Щи из свежей капусты с картофелем на мкб со сметаной | C166: 250/15/10 | D166: 250/15/10 | E166: 7.5 | F166: 7.5 | G166: 8.5 | H166: 8.5 | I166: 18.2 | J166: 18.2 | K166: 155.7 | L166: 155.7 | M166: 0.15 | N166: 0.15 | O166: 0.45 | P166: 0.45 | Q166: 0.6 | R166: 0.6 | S166: 10.25 | T166: 10.25 | U166: 45.25 | V166: 45.25 | W166: 78.74 | X166: 78.74 | Y166: 24.45 | Z166: 24.45 | AA166: 1.15 | AB166: 1.15
A167: №259 | B167: Жаркое из говядины | C167: 200 | D167: 220 | E167: 11.38 | F167: 12.51 | G167: 12.53 | H167: 13.78 | I167: 27.92 | J167: 30 | K167: 381 | L167: 419.1 | M167: 0.15 | N167: 0.165 | O167: 0.18 | P167: 0.2 | Q167: 0.2 | R167: 0.22 | S167: 21.67 | T167: 23.84 | U167: 31.33 | V167: 34.46 | W167: 225 | X167: 247.5 | Y167: 49.59 | Z167: 54.54 | AA167: 1.92 | AB167: 2.11
B168: Хлеб пшеничный /ржано-пшеничный | C168: 30 | D168: 50 | E168: 3.37 | F168: 5.62 | G168: 1.78 | H168: 2.97 | I168: 12.6 | J168: 21 | K168: 90 | L168: 150 | M168: 0 | N168: 0 | O168: 0.05 | P168: 0.07 | Q168: 0.015 | R168: 0.02 | S168: 0 | T168: 0 | U168: 6.9 | V168: 11.5 | W168: 0 | X168: 0 | Y168: 0 | Z168: 0 | AA168: 0.6 | AB168: 0.08
A169: №376 | B169: Чай с сахаром | C169: 200/15 | D169: 200/15 | E169: 0.2 | F169: 0.2 | G169: 0.05 | H169: 0.05 | I169: 15.01 | J169: 15.01 | K169: 61.29 | L169: 61.29 | M169: 0.05 | N169: 0.05 | O169: 0 | P169: 0 | Q169: 0.01 | R169: 0.01 | S169: 0.1 | T169: 0.1 | U169: 5.25 | V169: 5.25 | W169: 8.24 | X169: 8.24 | Y169: 4.4 | Z169: 4.4 | AA169: 0.86 | AB169: 0.86
B170: Итого за обед: | E170: =E166+E167+E168+E169+E165 -> 23.32 | F170: =F166+F167+F168+F169+F165 -> 27.28 | G170: 26.91 | H170: 32.05 | I170: =I166+I167+I168+I169+I165+I161 -> 95.55 | J170: =J166+J167+J168+J169+J165+J161 -> 120.57 | K170: =K166+K167+K168+K169+K165+K162 -> 859.81 | L170: 875.79 | M170: 0.35 | N170: 0.365 | O170: 0.69 | P170: 0.74 | Q170: 0.84 | R170: 0.88 | S170: 37.11 | T170: 44.37 | U170: 103.36 | V170: 120.84 | W170: 328.03 | X170: =X166+X167+X168+X169+X165+X158 -> 487.23 | Y170: 88.39 | Z170: 99.97 | AA170: 4.53 | AB170: 4.2
B171: Итого за 1 день: | E171: =E163+E170 -> 45.2 | F171: =F163+F170 -> 52.74 | G171: 48.41 | H171: 56.7 | I171: 184.4 | J171: 239.7 | K171: 1385.81 | L171: 1491.49 | M171: 0.932 | N171: 1.017 | O171: 1.02 | P171: 1.116 | Q171: 1.209 | R171: 1.29 | S171: 58.61 | T171: 74.55 | U171: =U163+U170 -> 576.33 | V171: 637.61 | W171: 814.55 | X171: 1011.55 | Y171: 179.83 | Z171: 209.41 | AA171: 8.95 | AB171: 8.8
B173: День 10 / Четверг
B174: Завтрак
A175: №49 | B175: Салат "Витаминный"(до 1 марта)/ Винегрет овощной(после 1 марта) | C175: 60 | D175: 100 | E175: 0.7 | F175: 1.17 | G175: 3.06 | H175: 5.1 | I175: 6.65 | J175: 11.09 | K175: 63.6 | L175: 106 | M175: 0 | N175: 0 | O175: 0.017 | P175: 0.03 | Q175: 0.017 | R175: 0.03 | S175: 14.85 | T175: 24.75 | U175: 20.94 | V175: 34.9 | W175: 17.61 | X175: 27.85 | Y175: 10.98 | Z175: 18.3 | AA175: 0.58 | AB175: 0.98
A176: №302 | B176: Гречка отварная рассыпчатая | C176: 150 | D176: 180 | E176: 6.86 | F176: 8.23 | G176: 7.58 | H176: 9.09 | I176: 40.4 | J176: 48.48 | K176: 230 | L176: 276 | M176: 0.03 | N176: 0.04 | O176: 0.23 | P176: 0.28 | Q176: 0.1 | R176: 0.13 | S176: 0 | T176: 0 | U176: 12.72 | V176: 15.4 | W176: 163 | X176: 196 | Y176: 88 | Z176: 118 | AA176: 1.63 | AB176: 2.37
A177: №260 | B177: Гуляш из говядины | C177: 100 | D177: 100 | E177: 13.04 | F177: 13.04 | G177: 8.5 | H177: 8.5 | I177: 9.44 | J177: 9.44 | K177: 167 | L177: 167 | M177: 0.3 | N177: 0.3 | O177: 0.1 | P177: 0.1 | Q177: 0.32 | R177: 0.32 | S177: 1.75 | T177: 1.75 | U177: 117.9 | V177: 117.9 | W177: 154.44 | X177: 154.44 | Y177: 19.96 | Z177: 19.96 | AA177: 2.67 | AB177: 2.67
B178: Хлеб пшеничный /ржано-пшеничный | C178: 30 | D178: 50 | E178: 3.37 | F178: 5.62 | G178: 1.78 | H178: 2.97 | I178: 12.6 | J178: 21 | K178: 90 | L178: 150 | M178: 0 | N178: 0 | O178: 0.05 | P178: 0.07 | Q178: 0.015 | R178: 0.02 | S178: 0 | T178: 0 | U178: 6.9 | V178: 11.5 | W178: 0 | X178: 0 | Y178: 0 | Z178: 0 | AA178: 0.6 | AB178: 0.08
A179: №376 | B179: Чай с сахаром | C179: 200/15 | D179: 200/15 | E179: 0.2 | F179: 0.2 | G179: 0.05 | H179: 0.05 | I179: 15.01 | J179: 15.01 | K179: 61.29 | L179: 61.29 | M179: 0.05 | N179: 0.05 | O179: 0 | P179: 0 | Q179: 0.01 | R179: 0.01 | S179: 0.1 | T179: 0.1 | U179: 5.25 | V179: 5.25 | W179: 8.24 | X179: 8.24 | Y179: 4.4 | Z179: 4.4 | AA179: 0.86 | AB179: 0.86
B180: Итого за завтрак: | E180: =E175+E176+E177+E178+E179 -> 24.17 | F180: =F175+F176+F177+F178+F179 -> 28.26 | G180: 20.97 | H180: 25.71 | I180: 84.1 | J180: 105.02 | K180: 611.89 | L180: 760.29 | M180: 0.38 | N180: 0.39 | O180: 0.397 | P180: 0.48 | Q180: 0.462 | R180: 0.51 | S180: 16.7 | T180: 26.6 | U180: 163.71 | V180: 184.95 | W180: 343.29 | X180: 386.53 | Y180: 123.34 | Z180: 160.66 | AA180: 6.34 | AB180: 6.96
B181: Обед
A182: №70 | B182: Огурцы соленые | C182: 60 | D182: 100 | E182: 0.5 | F182: 0.83 | G182: 0.6 | H182: 1 | I182: 1.56 | J182: 2.6 | K182: 8.4 | L182: 14 | M182: 0 | N182: 0 | O182: 0.01 | P182: 0.016 | Q182: 0.024 | R182: 0.04 | S182: 6 | T182: 10 | U182: 13.8 | V182: 23 | W182: 25.2 | X182: 42 | Y182: 8.4 | Z182: 14 | AA182: 0.36 | AB182: 0.6
A183: №108 | B183: Суп с клецками на мкб со сметаной | C183: 250/15/10 | D183: 250/15/10 | E183: 6.59 | F183: 6.59 | G183: 7.62 | H183: 7.62 | I183: 18.33 | J183: 18.33 | K183: 206 | L183: 206 | M183: 0.02 | N183: 0.02 | O183: 0.16 | P183: 0.16 | Q183: 0.12 | R183: 0.12 | S183: 15.1 | T183: 15.1 | U183: 25.66 | V183: 25.66 | W183: 187.7 | X183: 187.7 | Y183: 28.38 | Z183: 28.38 | AA183: 1.44 | AB183: 1.44
A184: №291 | B184: Плов из курицы | C184: 200 | D184: 220 | E184: 12.9 | F184: 14.19 | G184: 15.6 | H184: 17.16 | I184: 33.9 | J184: 37.29 | K184: 408 | L184: 448.8 | M184: 0.15 | N184: 0.16 | O184: 0.11 | P184: 0.12 | Q184: 0.13 | R184: 0.14 | S184: 5.7 | T184: 6.27 | U184: 221.8 | V184: 243 | W184: 79.5 | X184: 87.45 | Y184: 41.1 | Z184: 45.21 | AA184: 1.52 | AB184: 1.67
B185: Хлеб пшеничный /ржано-пшеничный | C185: 30 | D185: 50 | E185: 3.37 | F185: 5.62 | G185: 1.78 | H185: 2.97 | I185: 12.6 | J185: 21 | K185: 90 | L185: 150 | M185: 0 | N185: 0 | O185: 0.05 | P185: 0.07 | Q185: 0.015 | R185: 0.02 | S185: 0 | T185: 0 | U185: 6.9 | V185: 11.5 | W185: 0 | X185: 0 | Y185: 0 | Z185: 0 | AA185: 0.6 | AB185: 0.08
A186: №348 | B186: Компот из сухофруктов | C186: 200 | D186: 200 | E186: 0.54 | F186: 0.54 | G186: 0 | H186: 0 | I186: 17.58 | J186: 17.58 | K186: 70.53 | L186: 70.53 | M186: 0.18 | N186: 0.18 | O186: 0.005 | P186: 0.005 | Q186: 0.02 | R186: 0.02 | S186: 0.03 | T186: 0.03 | U186: 2.56 | V186: 2.56 | W186: 3.56 | X186: 3.56 | Y186: 1.74 | Z186: 1.74 | AA186: 0.1 | AB186: 0.1
B187: Итого за обед: | E187: =E183+E184+E185+E186+E182 -> 23.9 | F187: =F183+F184+F185+F186+F182 -> 27.77 | G187: 25.6 | H187: 28.75 | I187: =I183+I184+I185+I186+I182+I179+I177 -> 108.42 | J187: =J183+J184+J185+J186+J182+J179+J177 -> 121.25 | K187: 782.93 | L187: 889.33 | M187: 0.35 | N187: 0.36 | O187: 0.335 | P187: 0.371 | Q187: 0.309 | R187: 0.34 | S187: 26.83 | T187: 31.4 | U187: 270.72 | V187: 305.72 | W187: 295.96 | X187: 320.71 | Y187: 79.62 | Z187: 89.33 | AA187: 4.02 | AB187: 3.89
B188: Итого за 1 день: | E188: =E180+E187 -> 48.07 | F188: =F180+F187 -> 56.03 | G188: 46.57 | H188: 54.46 | I188: 192.52 | J188: 226.27 | K188: 1394.82 | L188: 1649.62 | M188: 0.73 | N188: 0.75 | O188: 0.732 | P188: 0.851 | Q188: 0.771 | R188: 0.85 | S188: 43.53 | T188: 58 | U188: 434.43 | V188: 490.67 | W188: 639.25 | X188: 707.24 | Y188: 202.96 | Z188: 249.99 | AA188: 10.36 | AB188: 10.85
B190: День 11 / Пятница
B191: Завтрак
A192: №338 | B192: Фрукт | C192: 200 | D192: 200 | E192: 0.52 | F192: 0.52 | G192: 0.34 | H192: 0.34 | I192: 28.82 | J192: 28.82 | K192: 104 | L192: 104 | M192: 0 | N192: 0 | O192: 0.05 | P192: 0.05 | Q192: 0.03 | R192: 0.03 | S192: 20.8 | T192: 20.8 | U192: 25.6 | V192: 25.6 | W192: 0.02 | X192: 0.02 | Y192: 30.4 | Z192: 30.4 | AA192: 1.5 | AB192: 1.5
A193: №175 | B193: Каша "Дружба" молочная со сливочным маслом | C193: 200/5/10 | D193: 200/5/10 | E193: 6.4 | F193: 6.44 | G193: 7.29 | H193: 7.29 | I193: 35.97 | J193: 35.97 | K193: 172 | L193: 172 | M193: 0.05 | N193: 0.05 | O193: 0.13 | P193: 0.13 | Q193: 0.16 | R193: 0.16 | S193: 1.3 | T193: 1.3 | U193: 339 | V193: 339 | W193: 166 | X193: 166 | Y193: 39.65 | Z193: 39.65 | AA193: 0.81 | AB193: 0.81
A194: №420 | B194: Сосиски в тесте | C194: 90 | D194: 90 | E194: 10.01 | F194: 10.01 | G194: 8.21 | H194: 8.21 | I194: 25.44 | J194: 25.44 | K194: 188 | L194: 188 | M194: 0.04 | N194: 0.04 | O194: 0.06 | P194: 0.06 | Q194: 0.03 | R194: 0.03 | S194: 0.13 | T194: 0.13 | U194: 36.7 | V194: 36.7 | W194: 121.9 | X194: 121.9 | Y194: 17.2 | Z194: 17.2 | AA194: 1.36 | AB194: 1.36
B195: Хлеб пшеничный /ржано-пшеничный | C195: 30 | D195: 50 | E195: 3.37 | F195: 5.62 | G195: 1.78 | H195: 2.97 | I195: 12.6 | J195: 21 | K195: 90 | L195: 150 | M195: 0 | N195: 0 | O195: 0.05 | P195: 0.07 | Q195: 0.015 | R195: 0.02 | S195: 0 | T195: 0 | U195: 6.9 | V195: 11.5 | W195: 0 | X195: 0 | Y195: 0 | Z195: 0 | AA195: 0.6 | AB195: 0.08
A196: №376 | B196: Чай с сахаром | C196: 200/15 | D196: 200/15 | E196: 0.2 | F196: 0.2 | G196: 0.05 | H196: 0.05 | I196: 15.01 | J196: 15.01 | K196: 61.29 | L196: 61.29 | M196: 0.05 | N196: 0.05 | O196: 0 | P196: 0 | Q196: 0.01 | R196: 0.01 | S196: 0.1 | T196: 0.1 | U196: 5.25 | V196: 5.25 | W196: 8.24 | X196: 8.24 | Y196: 4.4 | Z196: 4.4 | AA196: 0.86 | AB196: 0.86
B197: Итого за завтрак: | E197: =E192+E193+E194+E195+E196 -> 20.5 | F197: =F192+F193+F194+F195+F196 -> 22.79 | G197: 17.67 | H197: 18.86 | I197: =I192+I193+I194+I196 -> 105.24 | J197: 126.24 | K197: 615.29 | L197: 675.29 | M197: 0.14 | N197: 0.14 | O197: 0.29 | P197: 0.31 | Q197: 0.245 | R197: 0.25 | S197: 22.33 | T197: 22.33 | U197: 413.45 | V197: 418.05 | W197: 296.16 | X197: 296.16 | Y197: 91.65 | Z197: 91.65 | AA197: 5.13 | AB197: 4.61
B198: Обед
A199: №59 | B199: Салат из моркови с яблоком (до 1 марта) Салат "Зимний" (после 1 марта) | C199: 60 | D199: 100 | E199: 0.59 | F199: 0.98 | G199: 6.08 | H199: 10.13 | I199: 5.19 | J199: 8.65 | K199: 77.92 | L199: 129.86 | M199: 0 | N199: 0 | O199: 0.048 | P199: 0.06 | Q199: 0.024 | R199: 0.04 | S199: 15 | T199: 25 | U199: 8.4 | V199: 14 | W199: 15.6 | X199: 26 | Y199: 12 | Z199: 20 | AA199: 0.58 | AB199: 0.9
A200: №96 | B200: Рассольник Ленинградский на мкб со сметаной | C200: 250/15/10 | D200: 250/15/10 | E200: 7.02 | F200: 7.02 | G200: 8.2 | H200: 8.2 | I200: 17.32 | J200: 17.32 | K200: 171.3 | L200: 171.3 | M200: 0.18 | N200: 0.18 | O200: 0.12 | P200: 0.12 | Q200: 0.1 | R200: 0.1 | S200: 10.68 | T200: 10.68 | U200: 28.84 | V200: 28.84 | W200: 205.4 | X200: 205.4 | Y200: 29.7 | Z200: 29.7 | AA200: 1.38 | AB200: 1.38
A201: №203 | B201: Макароны отварные со сливочным маслом | C201: 150 | D201: 180 | E201: 5.47 | F201: 6.84 | G201: 6.37 | H201: 8.95 | I201: 36.34 | J201: 45.43 | K201: 224 | L201: 268.8 | M201: 0.03 | N201: 0.04 | O201: 0.09 | P201: 0.011 | Q201: 0.02 | R201: 0.03 | S201: 0 | T201: 0 | U201: 11.81 | V201: 14.7 | W201: 47.64 | X201: 59.5 | Y201: 8.36 | Z201: 10.45 | AA201: 0.85 | AB201: 1.06
A202: №301 | B202: Кнели куриные | C202: 100 | D202: 100 | E202: 15.14 | F202: 15.14 | G202: 10.6 | H202: 10.6 | I202: 6.95 | J202: 6.95 | K202: 228 | L202: 228 | M202: 0.04 | N202: 0.04 | O202: 0.1 | P202: 0.1 | Q202: 0.14 | R202: 0.14 | S202: 5.87 | T202: 5.87 | U202: 18.4 | V202: 18.4 | W202: 50 | X202: 50 | Y202: 28.38 | Z202: 28.38 | AA202: 1.48 | AB202: 1.48
A203: №333 | B203: Соус томатный с овощами | C203: 30 | D203: 30 | E203: 0.3 | F203: 0.3 | G203: 1.4 | H203: 1.4 | I203: 1.8 | J203: 1.8 | K203: 21 | L203: 21 | M203: 0.12 | N203: 0.1 | O203: 0.07 | P203: 0.07 | Q203: 0.08 | R203: 0.08 | S203: 0.48 | T203: 0.48 | U203: 3.27 | V203: 3.27 | W203: 5.32 | X203: 5.32 | Y203: 2.19 | Z203: 2.19 | AA203: 0.07 | AB203: 0.07
B204: Хлеб пшеничный /ржано-пшеничный | C204: 30 | D204: 50 | E204: 3.37 | F204: 5.62 | G204: 1.78 | H204: 2.97 | I204: 12.6 | J204: 21 | K204: 90 | L204: 150 | M204: 0 | N204: 0 | O204: 0.05 | P204: 0.07 | Q204: 0.015 | R204: 0.02 | S204: 0 | T204: 0 | U204: 6.9 | V204: 11.5 | W204: 0 | X204: 0 | Y204: 0 | Z204: 0 | AA204: 0.6 | AB204: 0.08
A205: №359 | B205: Кисель | C205: 200 | D205: 200 | E205: 0 | F205: 0 | G205: 0 | H205: 0 | I205: 35.94 | J205: 35.94 | K205: 118 | L205: 118 | M205: 0 | N205: 0 | O205: 0 | P205: 0 | Q205: 0 | R205: 0 | S205: 0 | T205: 0 | U205: 0.3 | V205: 0.3 | W205: 0 | X205: 0 | Y205: 0 | Z205: 0 | AA205: 0.45 | AB205: 0.45
B206: Итого за обед: | E206: =E199+E200+E201+E202+E205+E203 -> 28.52 | F206: =F199+F200+F201+F202+F205+F203 -> 30.28 | G206: 32.65 | H206: 39.28 | I206: 103.54 | J206: 116.09 | K206: 840.22 | L206: 936.96 | M206: 0.37 | N206: 0.36 | O206: 0.428 | P206: 0.361 | Q206: 0.364 | R206: 0.39 | S206: 32.03 | T206: 42.03 | U206: 71.02 | V206: 79.51 | W206: 323.96 | X206: 346.22 | Y206: 80.63 | Z206: 90.72 | AA206: 4.81 | AB206: 5.34
B207: Итого за 1 день: | E207: =E197+E206 -> 49.02 | F207: =F197+F206 -> 53.07 | G207: 50.32 | H207: 58.14 | I207: 210.61 | J207: 239.91 | K207: =K197+K206 -> 1455.51 | L207: 1612.25 | M207: 0.51 | N207: 0.5 | O207: 0.718 | P207: 0.671 | Q207: 0.609 | R207: 0.64 | S207: 54.36 | T207: 64.36 | U207: 484.47 | V207: 497.56 | W207: 620.12 | X207: 642.38 | Y207: 172.28 | Z207: 182.37 | AA207: 9.94 | AB207: 9.95
B208: День 12 / Суббота
B209: Завтрак
A210: №71 | B210: Огурцы свежие | C210: 60 | D210: 100 | E210: 0.5 | F210: 0.83 | G210: 0.6 | H210: 1 | I210: 1.56 | J210: 2.6 | K210: 8.4 | L210: 14 | M210: 0 | N210: 0 | O210: 0.01 | P210: 0.016 | Q210: 0.024 | R210: 0.04 | S210: 6 | T210: 10 | U210: 13.8 | V210: 23 | W210: 25.2 | X210: 42 | Y210: 8.4 | Z210: 14 | AA210: 0.36 | AB210: 0.6
A211: №312 | B211: Картофельное пюре | C211: 150 | D211: 180 | E211: 3.43 | F211: 4.11 | G211: 7.1 | H211: 8.52 | I211: 25.3 | J211: 30.36 | K211: 170 | L211: 204 | M211: 0.03 | N211: 0.04 | O211: 0.17 | P211: 0.2 | Q211: 0.13 | R211: 0.15 | S211: 27.31 | T211: 32.77 | U211: 80.2 | V211: 96.28 | W211: 102.3 | X211: 123 | Y211: 34.45 | Z211: 41.37 | AA211: 1.24 | AB211: 1.5
... 22 more rows

Sheet Сличительное меню
A1: День1 | B1: День2 | C1: День 3 | D1: День 4 | E1: День 5 | F1: День 6
A2: Завтрак | B2: Завтрак | C2: Завтрак | D2: Завтрак | E2: Завтрак | F2: Завтрак
A3: Огурцы свежие | B3: Булочка домашняя | C3: сыр | D3: Салат из капусты/ Винегрет овощной | E3: салат из свеклы с горошком | F3: фрукт
A4: Каша гречневая | B4: рис отварной | C4: Каша молочная геркулесовая | D4: картофельное пюре | E4: макароны отварные | F4: Каша молочная дружба
A5: Сосиска отварная | B5: рыба припущенная | C5: перемяч с мясом | D5: Кнели | E5: Курица отварная | F5: ватрушка с творогом
A6: соус | B6: компот из сухофруктов | C6: чай сладкий | D6: соус | E6: соус | F6: чай сладкий
A7: чай сладкий | B7: хлеб | C7: хлеб | D7: компот из сухофруктов | E7: чай сладкий | F7: хлеб
A8: хлеб | D8: хлеб | E8: хлеб
A9: Обед | B9: Обед | C9: Обед | D9: Обед | E9: Обед | F9: Обед
A10: Салат из моркови с яблоками/ Салат "Зимний" | B10: Свекла отварная | C10: Салат из моркови с изюмом/ Салат из припущенной моркови с яблоком | D10: Салат "Зимний" | E10: Огурцы соленые | F10: Винегрет овощной
A11: суп с макаронами на мкб со сметаной | B11: щи на мкб со сметаной | C11: рассольник на мкб со сметаной | D11: борщ на мкб | E11: суп пшенный с фрик и сметаной | F11: рассольник на мкб
A12: Гарнир сложный | B12: макароны | C12: жаркое из говядины | D12: плов из говядины | E12: картофель тушеный | F12: рагу овощное с говядиной
A13: котлеты мясные | B13: тефтели | C13: кисель | D13: какао с молоком | E13: тефтели | F13: компот из сухофруктов
A14: кисель | B14: соус | C14: хлеб | D14: хлеб | E14: чай сладкий | F14: сырники из творога
A15: хлеб | B15: чай сладкий | E15: хлеб | F15: хлеб
B16: хлеб
A17: День 7 | B17: День 8 | C17: День 9 | D17: День 10 | E17: День 11 | F17: День 12
A18: Завтрак | B18: Завтрак | C18: Завтрак | D18: Завтрак | E18: Завтрак | F18: Завтрак
A19: салат из капусты/ Огурцы соленые | B19: Сыр | C19: Огурцы свежие | D19: Салат Витаминный/Винегрет овощной | E19: Фрукт | F19: Огурцы свежие
A20: Макароны отварные | B20: Каша молочная рисовая | C20: Гарнир сложный | D20: каша гречневая | E20: каша дружба молочная | F20: пюре картофельное
A21: Кнели куриные | B21: булочка с повидлом | C21: Котлеты мясные | D21: гуляш из говядины | E21: сосиски в тесте | F21: курица отварная
A22: компот из сухофруктов | B22: Компот из свежих фруктов | C22: соус | D22: чай сладкий | E22: чай сладкий | F22: чай сладкий
A23: хлеб | B23: хлеб | C23: кисель | D23: хлеб | E23: хлеб | F23: хлеб
C24: хлеб
A25: Обед | B25: Обед | C25: Обед | D25: Обед | E25: Обед | F25: Обед
A26: Салат из свеклы | B26: Салат из моркови/Салат из припущенной моркови с яблоком | C26: Свекла отварная | D26: Огурцы соленые | E26: Салат из моркови с яблоком/ Салат "Зимний" | F26: суп картофельный с крупой на мкб
A27: суп гречневый с фрикад | B27: суп с макаронами на мкб | C27: щи на мкб сол сметаной | D27: суп с клецками на мкб со сметаной | E27: Рассольник на мкб | F27: капуста тушеная
A28: пюре гороховое | B28: картофельное пюре | C28: жаркое с говядиной | D28: плов из курицы | E28: макароны отварные | F28: Котлета из говядины
A29: Сосиска отварная | B29: рыба припущенная | C29: чай сладкий | D29: компот из сухофруктов | E29: Кнели куриные | F29: чай сладкий
A30: чай сладкй | B30: чай | C30: хлеб | D30: хлеб | E30: соус | F30: запеканка из творога
A31: хлеб | B31: хлеб | E31: кисель
E32: хлеб | F32: хлеб
A34: *Замена салатов с 1 марта 2020 года

Sheet Нормы выхода блюд
A2: Рекомендуемая масса порций блюд (в граммах)
A3: для обущающихся различного возраста
A5: Наименование блюд | B5: Масса порций в грамах для обущающихся двух возрастных групп
B6: с 7 до 11 лет | C6: с 11 и старше
A7: Каша, овощное, яичное, творожное блюдо, мясное блюдо | B7: 150-200 | C7: 200-250
A8: Напитки (чай, какао, сок, компот, молоко, кефир и др.) | B8: 200 | C8: 200
A9: Салат | B9: 60-100 | C9: 100-150
A10: Суп | B10: 200-250 | C10: 250-300
A11: Мясо, котлета | B11: 80-120 | C11: 100-120
A12: Гарнир | B12: 150-200 | C12: 180-230
A13: Фрукты | B13: 100 | C13: 100
A16: Потребность в пищевых веществах и энергии в сутки
A18: Название пищевых веществ | B18: Усреднённая потребность в пищевых веществах для обущающихся двух возрастных групп
B19: с 7 до 11 лет | C19: с 11 и старше
A20: Белки | B20: 77 | C20: 90
A21: Жиры | B21: 79 | C21: 92
A22: Углеводы | B22: 335 | C22: 383
A23: Ккал | B23: 2350 | C23: 2713
A25: Завтрак 25 % от суточной потребности в пищевых веществах и энергии в сутки (пинкт 6.14)
A26: Состав: Закуска, горячее блюдо, горячий напиток, хлеб.
A28: Название пищевых веществ | B28: Ккал за завтрак 25 %
B29: с 7 до 11 лет | C29: с 11 и старше
A30: белки | B30: 19.25 | C30: 22.5
A31: жиры | B31: 19.75 | C31: 23
A32: углеводы | B32: 83.75 | C32: 95.75
A33: ккал | B33: 587.5 | C33: 678.25
A35: Обед: 35 % от суточной потребности в пищевых веществах и энергии в сутки (пинкт 6.14)
A36: Состав: закуска, первое, второе и сладкое блюдо, чай.
A38: Название пищевых веществ | B38: Ккал за обед 35 %
B39: с 7 до 11 лет | C39: с 11 и старше
A40: белки | B40: 26.95 | C40: 31.5
A41: жиры | B41: 27.65 | C41: 32.2
A42: углеводы | B42: 117.25 | C42: 134.05
A43: ккал | B43: 822.5 | C43: 949.55
A45: Общее 60 % за завтрак и обед
A47: Название пищевых веществ | B47: Ккал за завтрак и обед 60 %
B48: с 7 до 11 лет | C48: с 11 и старше
A49: белки | B49: =B40+B30 -> 46.2 | C49: =C40+C30 -> 54
A50: белки с учётом+-5% | B50: 43,89-48,51 | C50: 51,3-56,7
A51: жиры | B51: =B31+B41 -> 47.4 | C51: 55.2
A52: жиры с учётом +-5% | B52: 45,03-49,77 | C52: 52,44-57,96
A53: углеводы | B53: =B32+B42 -> 201 | C53: =C32+C42 -> 229.8
A54: углеводы с учётом +-5% | B54: 190,95-211,05 | C54: 218,30-241,29
A55: ккал | B55: =B33+B43 -> 1410 | C55: =C33+C43 -> 1627.8
A56: ккал с учётом +-5% | B56: 1339,50-1480,5 | C56: 1546,41-1709,19

Sheet Пищевая ценность
A2: Пищевая ценность
B4: Энергетическая ценность (ккал)
B6: 7-11 лет | C6: 12-18 лет
A7: День 1 | B7: 1462.89 | C7: 1652.9
A8: День 2 | B8: 1377.12 | C8: 1630.3
A9: День 3 | B9: 1384.34 | C9: 1534.3
A10: День 4 | B10: 1356.93 | C10: 1551.9
A11: День 5 | B11: 1353.26 | C11: 1600
A12: День 6 | B12: 1432.62 | C12: 1577.2
A13: День 7 | B13: 1399.17 | C13: 1566.5
A14: День 8 | B14: 1489.69 | C14: 1723.5
A15: День 9 | B15: 1397.79 | C15: 1613.9
A16: День 10 | B16: 1386.42 | C16: 1635.6
A17: День 11 | B17: 1542.59 | C17: 1707.4
A18: День 12 | B18: 1369.08 | C18: 1552.8
A19: Итого за 12 дней | B19: =B7+B8+B9+B10+B11+B12+B13+B14+B15+B16+B17+B18 -> 16951.9 | C19: =C7+C8+C9+C10+C11+C12+C13+C14+C15+C16+C17+C18 -> 19346.3
A20: Усредненные данные | B20: =B19/12 -> 1412.658333 | C20: =C19/12 -> 1612.191667
A21: норма СанПиН | B21: 1410 | C21: 1628
A22: норма СанПиН с учётом + 5% | B22: 1339,50-1480,5 | C22: 1546,41-1709,19

Sheet Меню 7,70
A1: Согласовано: | B1: Утверждаю:
A2: Директор МБОУ «Алексеевская НОШ № 4» | B2: СПОСПК "Эдем"
A3: Алексеевского муниципального района
A4: _________________Сунгатуллина Г. Н. | B4: _____________Турнина А. А.
A7: Примерное двухнедельное меню рационов сбалансированного питания учащихся за счёт бюджетных средств
A8: из расчета на одного учащегося в день
A9: Наименование блюда | B9: Масса порций, в гр.
A10: ДЕНЬ 1 / ПОНЕДЕЛЬНИК
A11: Каша гречневая рассыпчатая | B11: 150
A12: Чай с сахаром | B12: 200/15
A13: Соус томатный с овощами | B13: 30
A14: Хлеб пшеничный/ ржано-пшеничный | B14: 30
A16: ДЕНЬ 2 /ВТОРНИК
A17: Булочка домашняя | B17: 60
A18: Компот из сухофруктов | B18: 200
A20: ДЕНЬ 3 /СРЕДА
A21: Каша молочная геркулесовая со сливочным маслом | B21: 100/5/10
A22: Чай с сахаром | B22: 200/15
A23: Хлеб пшеничный/ ржано-пшеничный | B23: 30
A25: ДЕНЬ 4 /ЧЕТВЕРГ
A26: Картофельное пюре | B26: 150
A27: Соус томатный с овощами | B27: 30
A28: Компот из сухофруктов | B28: 200
A29: Хлеб пшеничный/ ржано-пшеничный | B29: 30
A31: ДЕНЬ 5/ПЯТНИЦА
A32: Макароны отварные со сливочным маслом | B32: 150
A33: Соус томатный с овощами | B33: 30
A34: Чай с сахаром | B34: 200/15
A35: Хлеб пшеничный/ ржано-пшеничный | B35: 30
A37: ДЕНЬ 6/СУББОТА
A38: Ватрушка с творогом | B38: 60
A39: Чай с сахаром | B39: 200/15
A41: ДЕНЬ 7/ПОНЕДЕЛЬНИК
A42: Макароны отварные со сливочным маслом | B42: 150
A43: Чай с сахаром | B43: 200/15
A44: Хлеб пшеничный/ ржано-пшеничный | B44: 30
A46: ДЕНЬ 8/ВТОРНИК
A47: Пирожок с повидлом | B47: 60
A48: Чай с сахаром | B48: 200/15
A50: ДЕНЬ 9/СРЕДА
A51: Сложный гарнир | B51: 150
A52: Кисель | B52: 200
A53: Хлеб пшеничный/ ржано-пшеничный | B53: 30
A55: ДЕНЬ 10/ЧЕТВЕРГ
A56: Каша гречневая рассыпчатая | B56: 150
A57: Чай с сахаром | B57: 200/15
A58: Хлеб пшеничный/ ржано-пшеничный | B58: 30
A60: ДЕНЬ 11/ПЯТНИЦА
A61: Макароны отварные со сливочным маслом | B61: 150
A62: Соус томатный с овощами | B62: 30
A63: Кисель | B63: 200
A64: Хлеб пшеничный/ ржано-пшеничный | B64: 30
A66: ДЕНЬ 12/СУББОТА
A67: Картофельное пюре | B67: 150
A68: Соус томатный с овощами | B68: 30
A69: Чай с сахаром | B69: 200/15
A70: Хлеб пшеничный/ ржано-пшеничный | B70: 30
